Workbook

Sheet ①初期設定
N2: 【参考】
C3: １．事業所の種類 | O3: =C3 -> １．事業所の種類
D4: 一般 | P4: 特例措置対象事業場とは、次に掲げる業種に該当する常時10人未満の労働者を使用する事業場をいいます。
P5: 商業 | R5: 卸売業、小売業、理美容業、倉庫業、その他の商業
P6: 映画・演劇業 | R6: 映画の映写、演劇、その他興業の事業
P7: 保健衛生業 | R7: 病院、診療所、社会福祉施設、浴場業、その他の保健衛生業
P8: 接客娯楽業 | R8: 旅館、飲食店、ゴルフ場、公園・遊園地、その他の接客娯楽業
C10: ２．変形労働時間制 | O10: =C10 -> ２．変形労働時間制
D11: 適用なし | G11: =IF($D$11="１年変形","連続労働日数などのチェック機能はありませんのでご注意ください。","") ->  | P11: 適用なし | R11: ・原則：１日８時間、１週４０時間（特例措置対象事業場は１週４４時間）
P12: １カ月変形 | R12: ・１カ月の１週平均労働時間が４０時間以内（特例措置対象事業場は１週平均労働時間が４４時間以内）
R13: ・各週、各日の始業、終業時刻が定められていれば、特定の日の勤務時間に制限はありません。
R14: ・その他の要件はこちらをご覧ください。
S15: http://www.synergistic.co.jp/１カ月単位の変形労働時間制/
P16: １年変形 | R16: ・対象期間の１週平均労働時間が４０時間以内（※特例措置対象事業場も同様）
R17: ・１日の労働時間の限度は１０時間、１週間の労働時間の限度は５２時間です。
R18: ・その他の要件はこちらをご覧ください。
S19: http://www.synergistic.co.jp/１年単位の変形労働時間制/
P20: ※ １カ月単位や１年単位の変形労働時間制の導入をお考えの場合は、弊社までご相談ください。
C22: ３．開始年月日と週の起算日の入力 | G22: （2021/12/31始まりまで対応） | O22: =C22 -> ３．開始年月日と週の起算日の入力
D23: 2021 | E23: 年 | F23: 1 | G23: 月 | H23: 1 | I23: 日 | J23: 日 | K23: 曜日始まり | P23: ・賃金計算期間の初日からなど、任意の日から開始可能です。
P24: ・特段の定めが無い場合、週の起算日は日曜日になります。
P25: ・日曜日以外に週の起算日を設定するメリットがある事業場もあります。
P26: ・週の起算日を変更すると、それに合わせて次の４．所定労働時間の入力セルが変化しますのでご注意ください。
C28: ４．所定労働時間の入力 | O28: =C28 -> ４．所定労働時間の入力
D29: =IF(VLOOKUP($J$23,②年間カレンダー!$AM$21:$AN$27,2,FALSE)=1,"日",IF(VLOOKUP($J$23,②年間カレンダー!$AM$21:$AN$27,2,FALSE)=2,"月",IF(VLOOKUP($J$23,②年間カレンダー!$AM$21:$AN$27,2,FALSE)=3,"火",IF(VLOOKUP($J$23,②年間カレンダー!$AM$21:$AN$27,2,FALSE)=4,"水",IF(VLOOKUP($J$23,②年間カレンダー!$AM$21:$AN$27,2,FALSE)=5,"木",IF(VLOOKUP($J$23,②年間カレンダー!$AM$21:$AN$27,2,FALSE)=6,"金","土")))))) -> 日 | E29: =VLOOKUP(VLOOKUP(②年間カレンダー!D$7,②年間カレンダー!$AM$21:$AN$27,2,FALSE)+1,②年間カレンダー!$AN$21:$AO$34,2,FALSE) -> 月 | F29: =VLOOKUP(VLOOKUP(②年間カレンダー!E$7,②年間カレンダー!$AM$21:$AN$27,2,FALSE)+1,②年間カレンダー!$AN$21:$AO$34,2,FALSE) -> 火 | G29: =VLOOKUP(VLOOKUP(②年間カレンダー!F$7,②年間カレンダー!$AM$21:$AN$27,2,FALSE)+1,②年間カレンダー!$AN$21:$AO$34,2,FALSE) -> 水 | H29: =VLOOKUP(VLOOKUP(②年間カレンダー!G$7,②年間カレンダー!$AM$21:$AN$27,2,FALSE)+1,②年間カレンダー!$AN$21:$AO$34,2,FALSE) -> 木 | I29: =VLOOKUP(VLOOKUP(②年間カレンダー!H$7,②年間カレンダー!$AM$21:$AN$27,2,FALSE)+1,②年間カレンダー!$AN$21:$AO$34,2,FALSE) -> 金 | J29: =VLOOKUP(VLOOKUP(②年間カレンダー!I$7,②年間カレンダー!$AM$21:$AN$27,2,FALSE)+1,②年間カレンダー!$AN$21:$AO$34,2,FALSE) -> 土 | P29: ・水曜休診のクリニックや土曜日半日出勤など、各曜日ごとに所定労働時間の設定が可能です。
D30: 0.3333333333 | E30: 0.3333333333 | F30: 0.3333333333 | G30: 0.3333333333 | H30: 0.3333333333 | I30: 0.3333333333 | J30: 0.3333333333
D31: =IF($D$11="１年変形",IF(D30*24>10,"10時間超",""),IF($D$11="適用なし",IF(D30*24>8,"8時間超",""),"")) ->  | E31: =IF($D$11="１年変形",IF(E30*24>10,"10時間超",""),IF($D$11="適用なし",IF(E30*24>8,"8時間超",""),"")) ->  | F31: =IF($D$11="１年変形",IF(F30*24>10,"10時間超",""),IF($D$11="適用なし",IF(F30*24>8,"8時間超",""),"")) -> 
C32: =IF($D$11="適用なし","５．前年最終週の所定労働時間","") -> ５．前年最終週の所定労働時間 | O32: =IF($D$11="適用なし","５．前年最終週の所定労働時間","") -> ５．前年最終週の所定労働時間
D33: =IF($D$11="適用なし",IF(VLOOKUP($J$23,②年間カレンダー!$AM$21:$AN$27,2,FALSE)=1,"日",IF(VLOOKUP($J$23,②年間カレンダー!$AM$21:$AN$27,2,FALSE)=2,"月",IF(VLOOKUP($J$23,②年間カレンダー!$AM$21:$AN$27,2,FALSE)=3,"火",IF(VLOOKUP($J$23,②年間カレンダー!$AM$21:$AN$27,2,FALSE)=4,"水",IF(VLOOKUP($J$23,②年間カレンダー!$AM$21:$AN$27,2,FALSE)=5,"木",IF(VLOOKUP($J$23,②年間カレンダー!$AM$21:$AN$27,2,FALSE)=6,"金","土")))))),"") -> 日 | E33: =IF($D$11="適用なし",VLOOKUP(VLOOKUP(②年間カレンダー!D$7,②年間カレンダー!$AM$21:$AN$27,2,FALSE)+1,②年間カレンダー!$AN$21:$AO$34,2,FALSE),"") -> 月 | F33: =IF($D$11="適用なし",VLOOKUP(VLOOKUP(②年間カレンダー!E$7,②年間カレンダー!$AM$21:$AN$27,2,FALSE)+1,②年間カレンダー!$AN$21:$AO$34,2,FALSE),"") -> 火 | G33: =IF($D$11="適用なし",VLOOKUP(VLOOKUP(②年間カレンダー!F$7,②年間カレンダー!$AM$21:$AN$27,2,FALSE)+1,②年間カレンダー!$AN$21:$AO$34,2,FALSE),"") -> 水 | H33: =IF($D$11="適用なし",VLOOKUP(VLOOKUP(②年間カレンダー!G$7,②年間カレンダー!$AM$21:$AN$27,2,FALSE)+1,②年間カレンダー!$AN$21:$AO$34,2,FALSE),"") -> 木 | I33: =IF($D$11="適用なし",VLOOKUP(VLOOKUP(②年間カレンダー!H$7,②年間カレンダー!$AM$21:$AN$27,2,FALSE)+1,②年間カレンダー!$AN$21:$AO$34,2,FALSE),"") -> 金 | J33: =IF($D$11="適用なし",VLOOKUP(VLOOKUP(②年間カレンダー!I$7,②年間カレンダー!$AM$21:$AN$27,2,FALSE)+1,②年間カレンダー!$AN$21:$AO$34,2,FALSE),"") -> 土 | K33: =IF($D$11="適用なし","合計","") -> 合計 | P33: =IF($D$11="適用なし","・開始月の第１週が週の途中から始まる場合、週所定労働時間が法定労働時間を超過していないかをチェックするための入力欄です。","") -> ・開始月の第１週が週の途中から始まる場合、週所定労働時間が法定労働時間を超過していないかをチェックするための入力欄です。
K34: =IF($D$11="適用なし",SUM(D34:J34),"") -> 0

Sheet ②年間カレンダー
C2: ５．所定労働日数と所定休日数の決定
D3: ※カレンダ上ーの「会社の休日」と「数字の入っていないセル」をダブルクリックし、法定休日は濃いオレンジ色、法定休日以外は薄いオレンジ色にしてください。
D4: セルをダブルクリックすると、薄いオレンジ色→濃いオレンジ色→白色を繰り返します。特に「数字の入っていないセル」を見落としやすいです。 | AH4: ↑ クリックすると弊社ホームページが開きます。
M5: 年間カレンダー | U5: ="（"&①初期設定!$D$23&"年／"&TEXT(DATE(①初期設定!$D$23,①初期設定!$F$23,①初期設定!$H$23),"ggge年m月d日")&"始まり）" -> （2021年／令和3年1月1日始まり）
D6: =①初期設定!$F$23 -> 1 | E6: =IF(F6="","","～") ->  | F6: =IF(①初期設定!$H$23=1,"",IF(D6=12,D6-11,D6+1)) ->  | K6: =IF(①初期設定!$D$11="１カ月変形",IF(①初期設定!$D$4="一般",ROUNDDOWN(40*L12/7,1),ROUNDDOWN(44*L12/7,1)),"") ->  | P6: =IF(①初期設定!$H$23=1,IF(D6=12,1,D6+1),F6) -> 2 | Q6: =IF(R6="","","～") ->  | R6: =IF(①初期設定!$H$23=1,"",IF(P6=12,P6-11,P6+1)) ->  | W6: =IF(①初期設定!$D$11="１カ月変形",IF(①初期設定!$D$4="一般",ROUNDDOWN(40*X12/7,1),ROUNDDOWN(44*X12/7,1)),"") ->  | AB6: =IF(①初期設定!$H$23=1,IF(P6=12,1,P6+1),R6) -> 3 | AC6: =IF(AD6="","","～") ->  | AD6: =IF(①初期設定!$H$23=1,"",IF(AB6=12,AB6-11,AB6+1)) ->  | AI6: =IF(①初期設定!$D$11="１カ月変形",IF(①初期設定!$D$4="一般",ROUNDDOWN(40*AJ12/7,1),ROUNDDOWN(44*AJ12/7,1)),"") -> 
D7: =①初期設定!$D$29 -> 日 | E7: =①初期設定!$E$29 -> 月 | F7: =①初期設定!$F$29 -> 火 | G7: =①初期設定!$G$29 -> 水 | H7: =①初期設定!$H$29 -> 木 | I7: =①初期設定!$I$29 -> 金 | J7: =①初期設定!$J$29 -> 土 | K7: 週所定 | L7: 所定労働日数 | P7: =①初期設定!$D$29 -> 日 | Q7: =①初期設定!$E$29 -> 月 | R7: =①初期設定!$F$29 -> 火 | S7: =①初期設定!$G$29 -> 水 | T7: =①初期設定!$H$29 -> 木 | U7: =①初期設定!$I$29 -> 金 | V7: =①初期設定!$J$29 -> 土 | W7: 週所定 | X7: 所定労働日数 | AB7: =①初期設定!$D$29 -> 日 | AC7: =①初期設定!$E$29 -> 月 | AD7: =①初期設定!$F$29 -> 火 | AE7: =①初期設定!$G$29 -> 水 | AF7: =①初期設定!$H$29 -> 木 | AG7: =①初期設定!$I$29 -> 金 | AH7: =①初期設定!$J$29 -> 土 | AI7: 週所定 | AJ7: 所定労働日数
D8: =①初期設定!$D$30 -> 0.3333333333 | E8: =①初期設定!$E$30 -> 0.3333333333 | F8: =①初期設定!$F$30 -> 0.3333333333 | G8: =①初期設定!$G$30 -> 0.3333333333 | H8: =①初期設定!$H$30 -> 0.3333333333 | I8: =①初期設定!$I$30 -> 0.3333333333 | J8: =①初期設定!$J$30 -> 0.3333333333 | K8: 労働Ｈ | L8: =COUNTIF(D89:J94,1) -> 42 | M8: =IF(①初期設定!$D$11="１年変形",IF(OR(D8*24>10,E8*24>10,F8*24>10,G8*24>10,H8*24>10,I8*24>10,J8*24>10),"10時間超",""),IF(①初期設定!$D$11="適用なし",IF(OR(D8*24>8,E8*24>8,F8*24>8,G8*24>8,H8*24>8,I8*24>8,J8*24>8),"8時間超",""),"")) ->  | P8: =①初期設定!$D$30 -> 0.3333333333 | Q8: =①初期設定!$E$30 -> 0.3333333333 | R8: =①初期設定!$F$30 -> 0.3333333333 | S8: =①初期設定!$G$30 -> 0.3333333333 | T8: =①初期設定!$H$30 -> 0.3333333333 | U8: =①初期設定!$I$30 -> 0.3333333333 | V8: =①初期設定!$J$30 -> 0.3333333333 | W8: 労働Ｈ | X8: =COUNTIF(P89:V94,1) -> 42 | Y8: =IF(①初期設定!$D$11="１年変形",IF(OR(P8*24>10,Q8*24>10,R8*24>10,S8*24>10,T8*24>10,U8*24>10,V8*24>10),"10時間超",""),IF(①初期設定!$D$11="適用なし",IF(OR(P8*24>8,Q8*24>8,R8*24>8,S8*24>8,T8*24>8,U8*24>8,V8*24>8),"8時間超",""),"")) ->  | AB8: =①初期設定!$D$30 -> 0.3333333333 | AC8: =①初期設定!$E$30 -> 0.3333333333 | AD8: =①初期設定!$F$30 -> 0.3333333333 | AE8: =①初期設定!$G$30 -> 0.3333333333 | AF8: =①初期設定!$H$30 -> 0.3333333333 | AG8: =①初期設定!$I$30 -> 0.3333333333 | AH8: =①初期設定!$J$30 -> 0.3333333333 | AI8: 労働Ｈ | AJ8: =COUNTIF(AB89:AH94,1) -> 42 | AK8: =IF(①初期設定!$D$11="１年変形",IF(OR(AB8*24>10,AC8*24>10,AD8*24>10,AE8*24>10,AF8*24>10,AG8*24>10,AH8*24>10),"10時間超",""),IF(①初期設定!$D$11="適用なし",IF(OR(AB8*24>8,AC8*24>8,AD8*24>8,AE8*24>8,AF8*24>8,AG8*24>8,AH8*24>8),"8時間超",""),"")) ->  | AM8: =IF(AN8=12,①初期設定!$D$23,①初期設定!$D$23+COUNTIF($AN8:AN$8,12)) -> 2021 | AN8: =D6 -> 1
D9: =($J9-7+COLUMN(A9))*(COLUMN(B9)>WEEKDAY(DATE($AM8,$AN8,①初期設定!$H$23+(VLOOKUP(①初期設定!$J$23,$AM$21:$AN$27,2,FALSE)+VLOOKUP(①初期設定!$J$23,$AO$21:$AP$27,2,FALSE))))) -> 00:00:00 | E9: =($J9-7+COLUMN(B9))*(COLUMN(C9)>WEEKDAY(DATE($AM8,$AN8,①初期設定!$H$23+(VLOOKUP(①初期設定!$J$23,$AM$21:$AN$27,2,FALSE)+VLOOKUP(①初期設定!$J$23,$AO$21:$AP$27,2,FALSE))))) -> 00:00:00 | F9: =($J9-7+COLUMN(C9))*(COLUMN(D9)>WEEKDAY(DATE($AM8,$AN8,①初期設定!$H$23+(VLOOKUP(①初期設定!$J$23,$AM$21:$AN$27,2,FALSE)+VLOOKUP(①初期設定!$J$23,$AO$21:$AP$27,2,FALSE))))) -> 00:00:00 | G9: =($J9-7+COLUMN(D9))*(COLUMN(E9)>WEEKDAY(DATE($AM8,$AN8,①初期設定!$H$23+(VLOOKUP(①初期設定!$J$23,$AM$21:$AN$27,2,FALSE)+VLOOKUP(①初期設定!$J$23,$AO$21:$AP$27,2,FALSE))))) -> 00:00:00 | H9: =($J9-7+COLUMN(E9))*(COLUMN(F9)>WEEKDAY(DATE($AM8,$AN8,①初期設定!$H$23+(VLOOKUP(①初期設定!$J$23,$AM$21:$AN$27,2,FALSE)+VLOOKUP(①初期設定!$J$23,$AO$21:$AP$27,2,FALSE))))) -> 00:00:00 | I9: =($J9-7+COLUMN(F9))*(COLUMN(G9)>WEEKDAY(DATE($AM8,$AN8,①初期設定!$H$23+(VLOOKUP(①初期設定!$J$23,$AM$21:$AN$27,2,FALSE)+VLOOKUP(①初期設定!$J$23,$AO$21:$AP$27,2,FALSE))))) -> 2021-01-01 | J9: =DATE($AM8,$AN8,①初期設定!$H$23+7-WEEKDAY(DATE($AM8,$AN8,①初期設定!$H$23+(VLOOKUP(①初期設定!$J$23,$AM$21:$AN$27,2,FALSE)+VLOOKUP(①初期設定!$J$23,$AO$21:$AP$27,2,FALSE))))) -> 2021-01-02 | K9: =(D89*D$8+E89*E$8+F89*F$8+G89*G$8+H89*H$8+I89*I$8+J89*J$8)*24 -> 56 | L9: 所定休日数 | M9: =IF(①初期設定!$D$11="適用なし",IF(①初期設定!$D$4="一般",IF(K9+IF(①初期設定!K34="",0,①初期設定!K34*24)>40,"週40時間超",""),IF(K9+IF(①初期設定!K34="",0,①初期設定!K34*24)>44,"週44時間超","")),IF(①初期設定!$D$11="１年変形",IF(K9>52,"週52時間超",""),"")) -> 週40時間超 | P9: =($V9-7+COLUMN(M9)-12)*(COLUMN(N9)-12>WEEKDAY(DATE($AM9,$AN9,①初期設定!$H$23+(VLOOKUP(①初期設定!$J$23,$AM$21:$AN$27,2,FALSE)+VLOOKUP(①初期設定!$J$23,$AO$21:$AP$27,2,FALSE))))) -> 00:00:00 | Q9: =($V9-7+COLUMN(N9)-12)*(COLUMN(O9)-12>WEEKDAY(DATE($AM9,$AN9,①初期設定!$H$23+(VLOOKUP(①初期設定!$J$23,$AM$21:$AN$27,2,FALSE)+VLOOKUP(①初期設定!$J$23,$AO$21:$AP$27,2,FALSE))))) -> 2021-02-01 | R9: =($V9-7+COLUMN(O9)-12)*(COLUMN(P9)-12>WEEKDAY(DATE($AM9,$AN9,①初期設定!$H$23+(VLOOKUP(①初期設定!$J$23,$AM$21:$AN$27,2,FALSE)+VLOOKUP(①初期設定!$J$23,$AO$21:$AP$27,2,FALSE))))) -> 2021-02-02 | S9: =($V9-7+COLUMN(P9)-12)*(COLUMN(Q9)-12>WEEKDAY(DATE($AM9,$AN9,①初期設定!$H$23+(VLOOKUP(①初期設定!$J$23,$AM$21:$AN$27,2,FALSE)+VLOOKUP(①初期設定!$J$23,$AO$21:$AP$27,2,FALSE))))) -> 2021-02-03 | T9: =($V9-7+COLUMN(Q9)-12)*(COLUMN(R9)-12>WEEKDAY(DATE($AM9,$AN9,①初期設定!$H$23+(VLOOKUP(①初期設定!$J$23,$AM$21:$AN$27,2,FALSE)+VLOOKUP(①初期設定!$J$23,$AO$21:$AP$27,2,FALSE))))) -> 2021-02-04 | U9: =($V9-7+COLUMN(R9)-12)*(COLUMN(S9)-12>WEEKDAY(DATE($AM9,$AN9,①初期設定!$H$23+(VLOOKUP(①初期設定!$J$23,$AM$21:$AN$27,2,FALSE)+VLOOKUP(①初期設定!$J$23,$AO$21:$AP$27,2,FALSE))))) -> 2021-02-05 | V9: =DATE($AM9,$AN9,①初期設定!$H$23+7-WEEKDAY(DATE($AM9,$AN9,①初期設定!$H$23+(VLOOKUP(①初期設定!$J$23,$AM$21:$AN$27,2,FALSE)+VLOOKUP(①初期設定!$J$23,$AO$21:$AP$27,2,FALSE))))) -> 2021-02-06 | W9: =(P89*P$8+Q89*Q$8+R89*R$8+S89*S$8+T89*T$8+U89*U$8+V89*V$8)*24 -> 56 | X9: 所定休日数 | Y9: =IF(①初期設定!$D$11="適用なし",IF(①初期設定!$D$4="一般",IF(W9+IF(J13=0,K13,K14)>40,"週40時間超",""),IF(W9+IF(J13=0,K13,K14)>44,"週44時間超","")),IF(①初期設定!$D$11="１年変形",IF(W9>52,"週52時間超",""),"")) -> 週40時間超 | AB9: =($AH9-7+COLUMN(Y9)-24)*(COLUMN(Z9)-24>WEEKDAY(DATE($AM10,$AN10,①初期設定!$H$23+(VLOOKUP(①初期設定!$J$23,$AM$21:$AN$27,2,FALSE)+VLOOKUP(①初期設定!$J$23,$AO$21:$AP$27,2,FALSE))))) -> 00:00:00 | AC9: =($AH9-7+COLUMN(Z9)-24)*(COLUMN(AA9)-24>WEEKDAY(DATE($AM10,$AN10,①初期設定!$H$23+(VLOOKUP(①初期設定!$J$23,$AM$21:$AN$27,2,FALSE)+VLOOKUP(①初期設定!$J$23,$AO$21:$AP$27,2,FALSE))))) -> 2021-03-01 | AD9: =($AH9-7+COLUMN(AA9)-24)*(COLUMN(AB9)-24>WEEKDAY(DATE($AM10,$AN10,①初期設定!$H$23+(VLOOKUP(①初期設定!$J$23,$AM$21:$AN$27,2,FALSE)+VLOOKUP(①初期設定!$J$23,$AO$21:$AP$27,2,FALSE))))) -> 2021-03-02 | AE9: =($AH9-7+COLUMN(AB9)-24)*(COLUMN(AC9)-24>WEEKDAY(DATE($AM10,$AN10,①初期設定!$H$23+(VLOOKUP(①初期設定!$J$23,$AM$21:$AN$27,2,FALSE)+VLOOKUP(①初期設定!$J$23,$AO$21:$AP$27,2,FALSE))))) -> 2021-03-03 | AF9: =($AH9-7+COLUMN(AC9)-24)*(COLUMN(AD9)-24>WEEKDAY(DATE($AM10,$AN10,①初期設定!$H$23+(VLOOKUP(①初期設定!$J$23,$AM$21:$AN$27,2,FALSE)+VLOOKUP(①初期設定!$J$23,$AO$21:$AP$27,2,FALSE))))) -> 2021-03-04 | AG9: =($AH9-7+COLUMN(AD9)-24)*(COLUMN(AE9)-24>WEEKDAY(DATE($AM10,$AN10,①初期設定!$H$23+(VLOOKUP(①初期設定!$J$23,$AM$21:$AN$27,2,FALSE)+VLOOKUP(①初期設定!$J$23,$AO$21:$AP$27,2,FALSE))))) -> 2021-03-05 | AH9: =DATE($AM10,$AN10,①初期設定!$H$23+7-WEEKDAY(DATE($AM10,$AN10,①初期設定!$H$23+(VLOOKUP(①初期設定!$J$23,$AM$21:$AN$27,2,FALSE)+VLOOKUP(①初期設定!$J$23,$AO$21:$AP$27,2,FALSE))))) -> 2021-03-06 | AI9: =(AB89*AB$8+AC89*AC$8+AD89*AD$8+AE89*AE$8+AF89*AF$8+AG89*AG$8+AH89*AH$8)*24 -> 56 | AJ9: 所定休日数 | AK9: =IF(①初期設定!$D$11="適用なし",IF(①初期設定!$D$4="一般",IF(AI9+IF(V13=0,W13,W14)>40,"週40時間超",""),IF(AI9+IF(V13=0,W13,W14)>44,"週44時間超","")),IF(①初期設定!$D$11="１年変形",IF(AI9>52,"週52時間超",""),"")) -> 週40時間超 | AM9: =IF(AN9=12,①初期設定!$D$23,①初期設定!$D$23+COUNTIF($AN$8:AN9,12)) -> 2021 | AN9: =P6 -> 2
D10: =J9+1 -> 2021-01-03 | E10: =D10+1 -> 2021-01-04 | F10: =E10+1 -> 2021-01-05 | G10: 2021-01-06 | H10: =G10+1 -> 2021-01-07 | I10: 2021-01-08 | J10: =I10+1 -> 2021-01-09 | K10: 56 | L10: =L12-L8 -> -11 | M10: =IF(①初期設定!$D$11="１年変形",IF(K10>52,"週52時間超",""),"") ->  | P10: =V9+1 -> 2021-02-07 | Q10: =P10+1 -> 2021-02-08 | R10: =Q10+1 -> 2021-02-09 | S10: =R10+1 -> 2021-02-10 | T10: =S10+1 -> 2021-02-11 | U10: =T10+1 -> 2021-02-12 | V10: =U10+1 -> 2021-02-13 | W10: 56 | X10: =X12-X8 -> -14 | Y10: =IF(①初期設定!$D$11="１年変形",IF(W10>52,"週52時間超",""),"") ->  | AB10: =AH9+1 -> 2021-03-07 | AC10: =AB10+1 -> 2021-03-08 | AD10: =AC10+1 -> 2021-03-09 | AE10: =AD10+1 -> 2021-03-10 | AF10: =AE10+1 -> 2021-03-11 | AG10: =AF10+1 -> 2021-03-12 | AH10: =AG10+1 -> 2021-03-13 | AI10: 56 | AJ10: =AJ12-AJ8 -> -11 | AK10: =IF(①初期設定!$D$11="１年変形",IF(AI10>52,"週52時間超",""),"") ->  | AM10: =IF(AN10=12,①初期設定!$D$23,①初期設定!$D$23+COUNTIF($AN$8:AN10,12)) -> 2021 | AN10: =AB6 -> 3
D11: =IF(D10,IF(D10+7>DATE($AM8,$AN8+1,①初期設定!$H$23-1),0,(D10+7)),0) -> 2021-01-10 | E11: =IF(E10,IF(E10+7>DATE($AM8,$AN8+1,①初期設定!$H$23-1),0,(E10+7)),0) -> 2021-01-11 | F11: =IF(F10,IF(F10+7>DATE($AM8,$AN8+1,①初期設定!$H$23-1),0,(F10+7)),0) -> 2021-01-12 | G11: =IF(G10,IF(G10+7>DATE($AM8,$AN8+1,①初期設定!$H$23-1),0,(G10+7)),0) -> 2021-01-13 | H11: =IF(H10,IF(H10+7>DATE($AM8,$AN8+1,①初期設定!$H$23-1),0,(H10+7)),0) -> 2021-01-14 | I11: =IF(I10,IF(I10+7>DATE($AM8,$AN8+1,①初期設定!$H$23-1),0,(I10+7)),0) -> 2021-01-15 | J11: =IF(J10,IF(J10+7>DATE($AM8,$AN8+1,①初期設定!$H$23-1),0,(J10+7)),0) -> 2021-01-16 | K11: 56 | L11: 暦日数 | M11: =IF(①初期設定!$D$11="１年変形",IF(K11>52,"週52時間超",""),"") ->  | P11: =IF(P10,IF(P10+7>DATE($AM9,$AN9+1,①初期設定!$H$23-1),0,(P10+7)),0) -> 2021-02-14 | Q11: =IF(Q10,IF(Q10+7>DATE($AM9,$AN9+1,①初期設定!$H$23-1),0,(Q10+7)),0) -> 2021-02-15 | R11: =IF(R10,IF(R10+7>DATE($AM9,$AN9+1,①初期設定!$H$23-1),0,(R10+7)),0) -> 2021-02-16 | S11: =IF(S10,IF(S10+7>DATE($AM9,$AN9+1,①初期設定!$H$23-1),0,(S10+7)),0) -> 2021-02-17 | T11: =IF(T10,IF(T10+7>DATE($AM9,$AN9+1,①初期設定!$H$23-1),0,(T10+7)),0) -> 2021-02-18 | U11: =IF(U10,IF(U10+7>DATE($AM9,$AN9+1,①初期設定!$H$23-1),0,(U10+7)),0) -> 2021-02-19 | V11: =IF(V10,IF(V10+7>DATE($AM9,$AN9+1,①初期設定!$H$23-1),0,(V10+7)),0) -> 2021-02-20 | W11: 56 | X11: 暦日数 | Y11: =IF(①初期設定!$D$11="１年変形",IF(W11>52,"週52時間超",""),"") ->  | AB11: =IF(AB10,IF(AB10+7>DATE($AM10,$AN10+1,①初期設定!$H$23-1),0,(AB10+7)),0) -> 2021-03-14 | AC11: =IF(AC10,IF(AC10+7>DATE($AM10,$AN10+1,①初期設定!$H$23-1),0,(AC10+7)),0) -> 2021-03-15 | AD11: =IF(AD10,IF(AD10+7>DATE($AM10,$AN10+1,①初期設定!$H$23-1),0,(AD10+7)),0) -> 2021-03-16 | AE11: =IF(AE10,IF(AE10+7>DATE($AM10,$AN10+1,①初期設定!$H$23-1),0,(AE10+7)),0) -> 2021-03-17 | AF11: =IF(AF10,IF(AF10+7>DATE($AM10,$AN10+1,①初期設定!$H$23-1),0,(AF10+7)),0) -> 2021-03-18 | AG11: =IF(AG10,IF(AG10+7>DATE($AM10,$AN10+1,①初期設定!$H$23-1),0,(AG10+7)),0) -> 2021-03-19 | AH11: =IF(AH10,IF(AH10+7>DATE($AM10,$AN10+1,①初期設定!$H$23-1),0,(AH10+7)),0) -> 2021-03-20 | AI11: 56 | AJ11: 暦日数 | AK11: =IF(①初期設定!$D$11="１年変形",IF(AI11>52,"週52時間超",""),"") ->  | AM11: =IF(AN11=12,①初期設定!$D$23,①初期設定!$D$23+COUNTIF($AN$8:AN11,12)) -> 2021 | AN11: =D15 -> 4
D12: =IF(D11,IF(D11+7>DATE($AM8,$AN8+1,①初期設定!$H$23-1),0,(D11+7)),0) -> 2021-01-17 | E12: =IF(E11,IF(E11+7>DATE($AM8,$AN8+1,①初期設定!$H$23-1),0,(E11+7)),0) -> 2021-01-18 | F12: =IF(F11,IF(F11+7>DATE($AM8,$AN8+1,①初期設定!$H$23-1),0,(F11+7)),0) -> 2021-01-19 | G12: =IF(G11,IF(G11+7>DATE($AM8,$AN8+1,①初期設定!$H$23-1),0,(G11+7)),0) -> 2021-01-20 | H12: =IF(H11,IF(H11+7>DATE($AM8,$AN8+1,①初期設定!$H$23-1),0,(H11+7)),0) -> 2021-01-21 | I12: =IF(I11,IF(I11+7>DATE($AM8,$AN8+1,①初期設定!$H$23-1),0,(I11+7)),0) -> 2021-01-22 | J12: =IF(J11,IF(J11+7>DATE($AM8,$AN8+1,①初期設定!$H$23-1),0,(J11+7)),0) -> 2021-01-23 | K12: 56 | L12: =COUNTIF(D9:J14,"<>0") -> 31 | M12: =IF(①初期設定!$D$11="１年変形",IF(K12>52,"週52時間超",""),"") ->  | P12: =IF(P11,IF(P11+7>DATE($AM9,$AN9+1,①初期設定!$H$23-1),0,(P11+7)),0) -> 2021-02-21 | Q12: =IF(Q11,IF(Q11+7>DATE($AM9,$AN9+1,①初期設定!$H$23-1),0,(Q11+7)),0) -> 2021-02-22 | R12: =IF(R11,IF(R11+7>DATE($AM9,$AN9+1,①初期設定!$H$23-1),0,(R11+7)),0) -> 2021-02-23 | S12: =IF(S11,IF(S11+7>DATE($AM9,$AN9+1,①初期設定!$H$23-1),0,(S11+7)),0) -> 2021-02-24 | T12: =IF(T11,IF(T11+7>DATE($AM9,$AN9+1,①初期設定!$H$23-1),0,(T11+7)),0) -> 2021-02-25 | U12: =IF(U11,IF(U11+7>DATE($AM9,$AN9+1,①初期設定!$H$23-1),0,(U11+7)),0) -> 2021-02-26 | V12: =IF(V11,IF(V11+7>DATE($AM9,$AN9+1,①初期設定!$H$23-1),0,(V11+7)),0) -> 2021-02-27 | W12: 56 | X12: =COUNTIF(P9:V14,"<>0") -> 28 | Y12: =IF(①初期設定!$D$11="１年変形",IF(W12>52,"週52時間超",""),"") ->  | AB12: =IF(AB11,IF(AB11+7>DATE($AM10,$AN10+1,①初期設定!$H$23-1),0,(AB11+7)),0) -> 2021-03-21 | AC12: =IF(AC11,IF(AC11+7>DATE($AM10,$AN10+1,①初期設定!$H$23-1),0,(AC11+7)),0) -> 2021-03-22 | AD12: =IF(AD11,IF(AD11+7>DATE($AM10,$AN10+1,①初期設定!$H$23-1),0,(AD11+7)),0) -> 2021-03-23 | AE12: =IF(AE11,IF(AE11+7>DATE($AM10,$AN10+1,①初期設定!$H$23-1),0,(AE11+7)),0) -> 2021-03-24 | AF12: =IF(AF11,IF(AF11+7>DATE($AM10,$AN10+1,①初期設定!$H$23-1),0,(AF11+7)),0) -> 2021-03-25 | AG12: =IF(AG11,IF(AG11+7>DATE($AM10,$AN10+1,①初期設定!$H$23-1),0,(AG11+7)),0) -> 2021-03-26 | AH12: =IF(AH11,IF(AH11+7>DATE($AM10,$AN10+1,①初期設定!$H$23-1),0,(AH11+7)),0) -> 2021-03-27 | AI12: 56 | AJ12: =COUNTIF(AB9:AH14,"<>0") -> 31 | AK12: =IF(①初期設定!$D$11="１年変形",IF(AI12>52,"週52時間超",""),"") ->  | AM12: =IF(AN12=12,①初期設定!$D$23,①初期設定!$D$23+COUNTIF($AN$8:AN12,12)) -> 2021 | AN12: =P15 -> 5
D13: =IF(D12,IF(D12+7>DATE($AM8,$AN8+1,①初期設定!$H$23-1),0,(D12+7)),0) -> 2021-01-24 | E13: =IF(E12,IF(E12+7>DATE($AM8,$AN8+1,①初期設定!$H$23-1),0,(E12+7)),0) -> 2021-01-25 | F13: =IF(F12,IF(F12+7>DATE($AM8,$AN8+1,①初期設定!$H$23-1),0,(F12+7)),0) -> 2021-01-26 | G13: =IF(G12,IF(G12+7>DATE($AM8,$AN8+1,①初期設定!$H$23-1),0,(G12+7)),0) -> 2021-01-27 | H13: =IF(H12,IF(H12+7>DATE($AM8,$AN8+1,①初期設定!$H$23-1),0,(H12+7)),0) -> 2021-01-28 | I13: =IF(I12,IF(I12+7>DATE($AM8,$AN8+1,①初期設定!$H$23-1),0,(I12+7)),0) -> 2021-01-29 | J13: =IF(J12,IF(J12+7>DATE($AM8,$AN8+1,①初期設定!$H$23-1),0,(J12+7)),0) -> 2021-01-30 | K13: 56 | L13: 月所定労働時間 | M13: =IF(①初期設定!$D$11="１カ月変形",IF(L14>K6,"総枠超え",""),IF(①初期設定!$D$11="１年変形",IF(K13>52,"週52時間超",""),"")) ->  | P13: =IF(P12,IF(P12+7>DATE($AM9,$AN9+1,①初期設定!$H$23-1),0,(P12+7)),0) -> 2021-02-28 | Q13: =IF(Q12,IF(Q12+7>DATE($AM9,$AN9+1,①初期設定!$H$23-1),0,(Q12+7)),0) -> 00:00:00 | R13: =IF(R12,IF(R12+7>DATE($AM9,$AN9+1,①初期設定!$H$23-1),0,(R12+7)),0) -> 00:00:00 | S13: =IF(S12,IF(S12+7>DATE($AM9,$AN9+1,①初期設定!$H$23-1),0,(S12+7)),0) -> 00:00:00 | T13: =IF(T12,IF(T12+7>DATE($AM9,$AN9+1,①初期設定!$H$23-1),0,(T12+7)),0) -> 00:00:00 | U13: =IF(U12,IF(U12+7>DATE($AM9,$AN9+1,①初期設定!$H$23-1),0,(U12+7)),0) -> 00:00:00 | V13: =IF(V12,IF(V12+7>DATE($AM9,$AN9+1,①初期設定!$H$23-1),0,(V12+7)),0) -> 00:00:00 | W13: 56 | X13: 月所定労働時間 | Y13: =IF(①初期設定!$D$11="１カ月変形",IF(X14>W6,"総枠超え",""),IF(①初期設定!$D$11="１年変形",IF(W13>52,"週52時間超",""),"")) ->  | AB13: =IF(AB12,IF(AB12+7>DATE($AM10,$AN10+1,①初期設定!$H$23-1),0,(AB12+7)),0) -> 2021-03-28 | AC13: =IF(AC12,IF(AC12+7>DATE($AM10,$AN10+1,①初期設定!$H$23-1),0,(AC12+7)),0) -> 2021-03-29 | AD13: =IF(AD12,IF(AD12+7>DATE($AM10,$AN10+1,①初期設定!$H$23-1),0,(AD12+7)),0) -> 2021-03-30 | AE13: =IF(AE12,IF(AE12+7>DATE($AM10,$AN10+1,①初期設定!$H$23-1),0,(AE12+7)),0) -> 2021-03-31 | AF13: =IF(AF12,IF(AF12+7>DATE($AM10,$AN10+1,①初期設定!$H$23-1),0,(AF12+7)),0) -> 00:00:00 | AG13: =IF(AG12,IF(AG12+7>DATE($AM10,$AN10+1,①初期設定!$H$23-1),0,(AG12+7)),0) -> 00:00:00 | AH13: =IF(AH12,IF(AH12+7>DATE($AM10,$AN10+1,①初期設定!$H$23-1),0,(AH12+7)),0) -> 00:00:00 | AI13: 56 | AJ13: 月所定労働時間 | AK13: =IF(①初期設定!$D$11="１カ月変形",IF(AJ14>AI6,"総枠超え",""),IF(①初期設定!$D$11="１年変形",IF(AI13>52,"週52時間超",""),"")) ->  | AM13: =IF(AN13=12,①初期設定!$D$23,①初期設定!$D$23+COUNTIF($AN$8:AN13,12)) -> 2021 | AN13: =AB15 -> 6
D14: =IF(D13,IF(D13+7>DATE($AM8,$AN8+1,①初期設定!$H$23-1),0,(D13+7)),0) -> 2021-01-31 | E14: =IF(E13,IF(E13+7>DATE($AM8,$AN8+1,①初期設定!$H$23-1),0,(E13+7)),0) -> 00:00:00 | F14: =IF(F13,IF(F13+7>DATE($AM8,$AN8+1,①初期設定!$H$23-1),0,(F13+7)),0) -> 00:00:00 | G14: =IF(G13,IF(G13+7>DATE($AM8,$AN8+1,①初期設定!$H$23-1),0,(G13+7)),0) -> 00:00:00 | H14: =IF(H13,IF(H13+7>DATE($AM8,$AN8+1,①初期設定!$H$23-1),0,(H13+7)),0) -> 00:00:00 | I14: =IF(I13,IF(I13+7>DATE($AM8,$AN8+1,①初期設定!$H$23-1),0,(I13+7)),0) -> 00:00:00 | J14: =IF(J13,IF(J13+7>DATE($AM8,$AN8+1,①初期設定!$H$23-1),0,(J13+7)),0) -> 00:00:00 | K14: 56 | L14: =SUM(K9:K14) -> 336 | M14: =IF(①初期設定!$D$11="１カ月変形",IF(L14-K6>0,L14-K6,0),IF(①初期設定!$D$11="１年変形",IF(K14>52,"週52時間超",""),"")) ->  | P14: =IF(P13,IF(P13+7>DATE($AM9,$AN9+1,①初期設定!$H$23-1),0,(P13+7)),0) -> 00:00:00 | Q14: =IF(Q13,IF(Q13+7>DATE($AM9,$AN9+1,①初期設定!$H$23-1),0,(Q13+7)),0) -> 00:00:00 | R14: =IF(R13,IF(R13+7>DATE($AM9,$AN9+1,①初期設定!$H$23-1),0,(R13+7)),0) -> 00:00:00 | S14: =IF(S13,IF(S13+7>DATE($AM9,$AN9+1,①初期設定!$H$23-1),0,(S13+7)),0) -> 00:00:00 | T14: =IF(T13,IF(T13+7>DATE($AM9,$AN9+1,①初期設定!$H$23-1),0,(T13+7)),0) -> 00:00:00 | U14: =IF(U13,IF(U13+7>DATE($AM9,$AN9+1,①初期設定!$H$23-1),0,(U13+7)),0) -> 00:00:00 | V14: =IF(V13,IF(V13+7>DATE($AM9,$AN9+1,①初期設定!$H$23-1),0,(V13+7)),0) -> 00:00:00 | W14: 56 | X14: =SUM(W9:W14) -> 336 | Y14: =IF(①初期設定!$D$11="１カ月変形",IF(X14-W6>0,X14-W6,0),IF(①初期設定!$D$11="１年変形",IF(W14>52,"週52時間超",""),"")) ->  | AB14: =IF(AB13,IF(AB13+7>DATE($AM10,$AN10+1,①初期設定!$H$23-1),0,(AB13+7)),0) -> 00:00:00 | AC14: =IF(AC13,IF(AC13+7>DATE($AM10,$AN10+1,①初期設定!$H$23-1),0,(AC13+7)),0) -> 00:00:00 | AD14: =IF(AD13,IF(AD13+7>DATE($AM10,$AN10+1,①初期設定!$H$23-1),0,(AD13+7)),0) -> 00:00:00 | AE14: =IF(AE13,IF(AE13+7>DATE($AM10,$AN10+1,①初期設定!$H$23-1),0,(AE13+7)),0) -> 00:00:00 | AF14: =IF(AF13,IF(AF13+7>DATE($AM10,$AN10+1,①初期設定!$H$23-1),0,(AF13+7)),0) -> 00:00:00 | AG14: =IF(AG13,IF(AG13+7>DATE($AM10,$AN10+1,①初期設定!$H$23-1),0,(AG13+7)),0) -> 00:00:00 | AH14: =IF(AH13,IF(AH13+7>DATE($AM10,$AN10+1,①初期設定!$H$23-1),0,(AH13+7)),0) -> 00:00:00 | AI14: 56 | AJ14: =SUM(AI9:AI14) -> 336 | AK14: =IF(①初期設定!$D$11="１カ月変形",IF(AJ14-AI6>0,AJ14-AI6,0),IF(①初期設定!$D$11="１年変形",IF(AI14>52,"週52時間超",""),"")) ->  | AM14: =IF(AN14=12,①初期設定!$D$23,①初期設定!$D$23+COUNTIF($AN$8:AN14,12)) -> 2021 | AN14: =D24 -> 7
D15: =IF(①初期設定!$H$23=1,IF(AB6=12,1,AB6+1),AD6) -> 4 | E15: =IF(F15="","","～") ->  | F15: =IF(①初期設定!$H$23=1,"",IF(D15=12,D15-11,D15+1)) ->  | K15: =IF(①初期設定!$D$11="１カ月変形",IF(①初期設定!$D$4="一般",ROUNDDOWN(40*L21/7,1),ROUNDDOWN(44*L21/7,1)),"") ->  | P15: =IF(①初期設定!$H$23=1,IF(D15=12,1,D15+1),F15) -> 5 | Q15: =IF(R15="","","～") ->  | R15: =IF(①初期設定!$H$23=1,"",IF(P15=12,P15-11,P15+1)) ->  | W15: =IF(①初期設定!$D$11="１カ月変形",IF(①初期設定!$D$4="一般",ROUNDDOWN(40*X21/7,1),ROUNDDOWN(44*X21/7,1)),"") ->  | AB15: =IF(①初期設定!$H$23=1,IF(P15=12,1,P15+1),R15) -> 6 | AC15: =IF(AD15="","","～") ->  | AD15: =IF(①初期設定!$H$23=1,"",IF(AB15=12,AB15-11,AB15+1)) ->  | AI15: =IF(①初期設定!$D$11="１カ月変形",IF(①初期設定!$D$4="一般",ROUNDDOWN(40*AJ21/7,1),ROUNDDOWN(44*AJ21/7,1)),"") ->  | AM15: =IF(AN15=12,①初期設定!$D$23,①初期設定!$D$23+COUNTIF($AN$8:AN15,12)) -> 2021 | AN15: =P24 -> 8
D16: =①初期設定!$D$29 -> 日 | E16: =①初期設定!$E$29 -> 月 | F16: =①初期設定!$F$29 -> 火 | G16: =①初期設定!$G$29 -> 水 | H16: =①初期設定!$H$29 -> 木 | I16: =①初期設定!$I$29 -> 金 | J16: =①初期設定!$J$29 -> 土 | K16: 週所定 | L16: 所定労働日数 | P16: =①初期設定!$D$29 -> 日 | Q16: =①初期設定!$E$29 -> 月 | R16: =①初期設定!$F$29 -> 火 | S16: =①初期設定!$G$29 -> 水 | T16: =①初期設定!$H$29 -> 木 | U16: =①初期設定!$I$29 -> 金 | V16: =①初期設定!$J$29 -> 土 | W16: 週所定 | X16: 所定労働日数 | AB16: =①初期設定!$D$29 -> 日 | AC16: =①初期設定!$E$29 -> 月 | AD16: =①初期設定!$F$29 -> 火 | AE16: =①初期設定!$G$29 -> 水 | AF16: =①初期設定!$H$29 -> 木 | AG16: =①初期設定!$I$29 -> 金 | AH16: =①初期設定!$J$29 -> 土 | AI16: 週所定 | AJ16: 所定労働日数 | AM16: =IF(AN16=12,①初期設定!$D$23,①初期設定!$D$23+COUNTIF($AN$8:AN16,12)) -> 2021 | AN16: =AB24 -> 9
D17: =①初期設定!$D$30 -> 0.3333333333 | E17: =①初期設定!$E$30 -> 0.3333333333 | F17: =①初期設定!$F$30 -> 0.3333333333 | G17: =①初期設定!$G$30 -> 0.3333333333 | H17: =①初期設定!$H$30 -> 0.3333333333 | I17: =①初期設定!$I$30 -> 0.3333333333 | J17: =①初期設定!$J$30 -> 0.3333333333 | K17: 労働Ｈ | L17: =COUNTIF(D98:J103,1) -> 42 | M17: =IF(①初期設定!$D$11="１年変形",IF(OR(D17*24>10,E17*24>10,F17*24>10,G17*24>10,H17*24>10,I17*24>10,J17*24>10),"10時間超",""),IF(①初期設定!$D$11="適用なし",IF(OR(D17*24>8,E17*24>8,F17*24>8,G17*24>8,H17*24>8,I17*24>8,J17*24>8),"8時間超",""),"")) ->  | P17: =①初期設定!$D$30 -> 0.3333333333 | Q17: =①初期設定!$E$30 -> 0.3333333333 | R17: =①初期設定!$F$30 -> 0.3333333333 | S17: =①初期設定!$G$30 -> 0.3333333333 | T17: =①初期設定!$H$30 -> 0.3333333333 | U17: =①初期設定!$I$30 -> 0.3333333333 | V17: =①初期設定!$J$30 -> 0.3333333333 | W17: 労働Ｈ | X17: =COUNTIF(P98:V103,1) -> 42 | Y17: =IF(①初期設定!$D$11="１年変形",IF(OR(P17*24>10,Q17*24>10,R17*24>10,S17*24>10,T17*24>10,U17*24>10,V17*24>10),"10時間超",""),IF(①初期設定!$D$11="適用なし",IF(OR(P17*24>8,Q17*24>8,R17*24>8,S17*24>8,T17*24>8,U17*24>8,V17*24>8),"8時間超",""),"")) ->  | AB17: =①初期設定!$D$30 -> 0.3333333333 | AC17: =①初期設定!$E$30 -> 0.3333333333 | AD17: =①初期設定!$F$30 -> 0.3333333333 | AE17: =①初期設定!$G$30 -> 0.3333333333 | AF17: =①初期設定!$H$30 -> 0.3333333333 | AG17: =①初期設定!$I$30 -> 0.3333333333 | AH17: =①初期設定!$J$30 -> 0.3333333333 | AI17: 労働Ｈ | AJ17: =COUNTIF(AB98:AH103,1) -> 42 | AK17: =IF(①初期設定!$D$11="１年変形",IF(OR(AB17*24>10,AC17*24>10,AD17*24>10,AE17*24>10,AF17*24>10,AG17*24>10,AH17*24>10),"10時間超",""),IF(①初期設定!$D$11="適用なし",IF(OR(AB17*24>8,AC17*24>8,AD17*24>8,AE17*24>8,AF17*24>8,AG17*24>8,AH17*24>8),"8時間超",""),"")) ->  | AM17: =IF(AN17=12,①初期設定!$D$23,①初期設定!$D$23+COUNTIF($AN$8:AN17,12)) -> 2021 | AN17: =D33 -> 10
D18: =($J18-7+COLUMN(A18))*(COLUMN(B18)>WEEKDAY(DATE($AM11,$AN11,①初期設定!$H$23+(VLOOKUP(①初期設定!$J$23,$AM$21:$AN$27,2,FALSE)+VLOOKUP(①初期設定!$J$23,$AO$21:$AP$27,2,FALSE))))) -> 00:00:00 | E18: =($J18-7+COLUMN(B18))*(COLUMN(C18)>WEEKDAY(DATE($AM11,$AN11,①初期設定!$H$23+(VLOOKUP(①初期設定!$J$23,$AM$21:$AN$27,2,FALSE)+VLOOKUP(①初期設定!$J$23,$AO$21:$AP$27,2,FALSE))))) -> 00:00:00 | F18: =($J18-7+COLUMN(C18))*(COLUMN(D18)>WEEKDAY(DATE($AM11,$AN11,①初期設定!$H$23+(VLOOKUP(①初期設定!$J$23,$AM$21:$AN$27,2,FALSE)+VLOOKUP(①初期設定!$J$23,$AO$21:$AP$27,2,FALSE))))) -> 00:00:00 | G18: =($J18-7+COLUMN(D18))*(COLUMN(E18)>WEEKDAY(DATE($AM11,$AN11,①初期設定!$H$23+(VLOOKUP(①初期設定!$J$23,$AM$21:$AN$27,2,FALSE)+VLOOKUP(①初期設定!$J$23,$AO$21:$AP$27,2,FALSE))))) -> 00:00:00 | H18: =($J18-7+COLUMN(E18))*(COLUMN(F18)>WEEKDAY(DATE($AM11,$AN11,①初期設定!$H$23+(VLOOKUP(①初期設定!$J$23,$AM$21:$AN$27,2,FALSE)+VLOOKUP(①初期設定!$J$23,$AO$21:$AP$27,2,FALSE))))) -> 2021-04-01 | I18: =($J18-7+COLUMN(F18))*(COLUMN(G18)>WEEKDAY(DATE($AM11,$AN11,①初期設定!$H$23+(VLOOKUP(①初期設定!$J$23,$AM$21:$AN$27,2,FALSE)+VLOOKUP(①初期設定!$J$23,$AO$21:$AP$27,2,FALSE))))) -> 2021-04-02 | J18: =DATE($AM11,$AN11,①初期設定!$H$23+7-WEEKDAY(DATE($AM11,$AN11,①初期設定!$H$23+(VLOOKUP(①初期設定!$J$23,$AM$21:$AN$27,2,FALSE)+VLOOKUP(①初期設定!$J$23,$AO$21:$AP$27,2,FALSE))))) -> 2021-04-03 | K18: =(D98*D$17+E98*E$17+F98*F$17+G98*G$17+H98*H$17+I98*I$17+J98*J$17)*24 -> 56 | L18: 所定休日数 | M18: =IF(①初期設定!$D$11="適用なし",IF(①初期設定!$D$4="一般",IF(K18+IF(AH13=0,AI13,AI14)>40,"週40時間超",""),IF(K18+IF(AH13=0,AI13,AI14)>44,"週44時間超","")),IF(①初期設定!$D$11="１年変形",IF(K18>52,"週52時間超",""),"")) -> 週40時間超 | P18: =($V18-7+COLUMN(M18)-12)*(COLUMN(N18)-12>WEEKDAY(DATE($AM12,$AN12,①初期設定!$H$23+(VLOOKUP(①初期設定!$J$23,$AM$21:$AN$27,2,FALSE)+VLOOKUP(①初期設定!$J$23,$AO$21:$AP$27,2,FALSE))))) -> 00:00:00 | Q18: =($V18-7+COLUMN(N18)-12)*(COLUMN(O18)-12>WEEKDAY(DATE($AM12,$AN12,①初期設定!$H$23+(VLOOKUP(①初期設定!$J$23,$AM$21:$AN$27,2,FALSE)+VLOOKUP(①初期設定!$J$23,$AO$21:$AP$27,2,FALSE))))) -> 00:00:00 | R18: =($V18-7+COLUMN(O18)-12)*(COLUMN(P18)-12>WEEKDAY(DATE($AM12,$AN12,①初期設定!$H$23+(VLOOKUP(①初期設定!$J$23,$AM$21:$AN$27,2,FALSE)+VLOOKUP(①初期設定!$J$23,$AO$21:$AP$27,2,FALSE))))) -> 00:00:00 | S18: =($V18-7+COLUMN(P18)-12)*(COLUMN(Q18)-12>WEEKDAY(DATE($AM12,$AN12,①初期設定!$H$23+(VLOOKUP(①初期設定!$J$23,$AM$21:$AN$27,2,FALSE)+VLOOKUP(①初期設定!$J$23,$AO$21:$AP$27,2,FALSE))))) -> 00:00:00 | T18: =($V18-7+COLUMN(Q18)-12)*(COLUMN(R18)-12>WEEKDAY(DATE($AM12,$AN12,①初期設定!$H$23+(VLOOKUP(①初期設定!$J$23,$AM$21:$AN$27,2,FALSE)+VLOOKUP(①初期設定!$J$23,$AO$21:$AP$27,2,FALSE))))) -> 00:00:00 | U18: =($V18-7+COLUMN(R18)-12)*(COLUMN(S18)-12>WEEKDAY(DATE($AM12,$AN12,①初期設定!$H$23+(VLOOKUP(①初期設定!$J$23,$AM$21:$AN$27,2,FALSE)+VLOOKUP(①初期設定!$J$23,$AO$21:$AP$27,2,FALSE))))) -> 00:00:00 | V18: =DATE($AM12,$AN12,①初期設定!$H$23+7-WEEKDAY(DATE($AM12,$AN12,①初期設定!$H$23+(VLOOKUP(①初期設定!$J$23,$AM$21:$AN$27,2,FALSE)+VLOOKUP(①初期設定!$J$23,$AO$21:$AP$27,2,FALSE))))) -> 2021-05-01 | W18: =(P98*P$17+Q98*Q$17+R98*R$17+S98*S$17+T98*T$17+U98*U$17+V98*V$17)*24 -> 56 | X18: 所定休日数 | Y18: =IF(①初期設定!$D$11="適用なし",IF(①初期設定!$D$4="一般",IF(W18+IF(J22=0,K22,K23)>40,"週40時間超",""),IF(W18+IF(J22=0,K22,K23)>44,"週44時間超","")),IF(①初期設定!$D$11="１年変形",IF(W18>52,"週52時間超",""),"")) -> 週40時間超 | AB18: =($AH18-7+COLUMN(Y18)-24)*(COLUMN(Z18)-24>WEEKDAY(DATE($AM13,$AN13,①初期設定!$H$23+(VLOOKUP(①初期設定!$J$23,$AM$21:$AN$27,2,FALSE)+VLOOKUP(①初期設定!$J$23,$AO$21:$AP$27,2,FALSE))))) -> 00:00:00 | AC18: =($AH18-7+COLUMN(Z18)-24)*(COLUMN(AA18)-24>WEEKDAY(DATE($AM13,$AN13,①初期設定!$H$23+(VLOOKUP(①初期設定!$J$23,$AM$21:$AN$27,2,FALSE)+VLOOKUP(①初期設定!$J$23,$AO$21:$AP$27,2,FALSE))))) -> 00:00:00 | AD18: =($AH18-7+COLUMN(AA18)-24)*(COLUMN(AB18)-24>WEEKDAY(DATE($AM13,$AN13,①初期設定!$H$23+(VLOOKUP(①初期設定!$J$23,$AM$21:$AN$27,2,FALSE)+VLOOKUP(①初期設定!$J$23,$AO$21:$AP$27,2,FALSE))))) -> 2021-06-01 | AE18: =($AH18-7+COLUMN(AB18)-24)*(COLUMN(AC18)-24>WEEKDAY(DATE($AM13,$AN13,①初期設定!$H$23+(VLOOKUP(①初期設定!$J$23,$AM$21:$AN$27,2,FALSE)+VLOOKUP(①初期設定!$J$23,$AO$21:$AP$27,2,FALSE))))) -> 2021-06-02 | AF18: =($AH18-7+COLUMN(AC18)-24)*(COLUMN(AD18)-24>WEEKDAY(DATE($AM13,$AN13,①初期設定!$H$23+(VLOOKUP(①初期設定!$J$23,$AM$21:$AN$27,2,FALSE)+VLOOKUP(①初期設定!$J$23,$AO$21:$AP$27,2,FALSE))))) -> 2021-06-03 | AG18: =($AH18-7+COLUMN(AD18)-24)*(COLUMN(AE18)-24>WEEKDAY(DATE($AM13,$AN13,①初期設定!$H$23+(VLOOKUP(①初期設定!$J$23,$AM$21:$AN$27,2,FALSE)+VLOOKUP(①初期設定!$J$23,$AO$21:$AP$27,2,FALSE))))) -> 2021-06-04 | AH18: =DATE($AM13,$AN13,①初期設定!$H$23+7-WEEKDAY(DATE($AM13,$AN13,①初期設定!$H$23+(VLOOKUP(①初期設定!$J$23,$AM$21:$AN$27,2,FALSE)+VLOOKUP(①初期設定!$J$23,$AO$21:$AP$27,2,FALSE))))) -> 2021-06-05 | AI18: =(AB98*AB$17+AC98*AC$17+AD98*AD$17+AE98*AE$17+AF98*AF$17+AG98*AG$17+AH98*AH$17)*24 -> 56 | AJ18: 所定休日数 | AK18: =IF(①初期設定!$D$11="適用なし",IF(①初期設定!$D$4="一般",IF(AI18+IF(V22=0,W22,W23)>40,"週40時間超",""),IF(AI18+IF(V22=0,W22,W23)>44,"週44時間超","")),IF(①初期設定!$D$11="１年変形",IF(AI18>52,"週52時間超",""),"")) -> 週40時間超 | AM18: =IF(AN18=12,①初期設定!$D$23,①初期設定!$D$23+COUNTIF($AN$8:AN18,12)) -> 2021 | AN18: =P33 -> 11
D19: =J18+1 -> 2021-04-04 | E19: =D19+1 -> 2021-04-05 | F19: =E19+1 -> 2021-04-06 | G19: =F19+1 -> 2021-04-07 | H19: =G19+1 -> 2021-04-08 | I19: =H19+1 -> 2021-04-09 | J19: =I19+1 -> 2021-04-10 | K19: =(D99*D$17+E99*E$17+F99*F$17+G99*G$17+H99*H$17+I99*I$17+J99*J$17)*24 -> 56 | L19: =L21-L17 -> -12 | M19: =IF(①初期設定!$D$11="１年変形",IF(K19>52,"週52時間超",""),"") ->  | P19: =V18+1 -> 2021-05-02 | Q19: =P19+1 -> 2021-05-03 | R19: =Q19+1 -> 2021-05-04 | S19: =R19+1 -> 2021-05-05 | T19: =S19+1 -> 2021-05-06 | U19: =T19+1 -> 2021-05-07 | V19: =U19+1 -> 2021-05-08 | W19: =(P99*P$17+Q99*Q$17+R99*R$17+S99*S$17+T99*T$17+U99*U$17+V99*V$17)*24 -> 56 | X19: =X21-X17 -> -11 | Y19: =IF(①初期設定!$D$11="１年変形",IF(W19>52,"週52時間超",""),"") ->  | AB19: =AH18+1 -> 2021-06-06 | AC19: =AB19+1 -> 2021-06-07 | AD19: =AC19+1 -> 2021-06-08 | AE19: =AD19+1 -> 2021-06-09 | AF19: =AE19+1 -> 2021-06-10 | AG19: =AF19+1 -> 2021-06-11 | AH19: =AG19+1 -> 2021-06-12 | AI19: =(AB99*AB$17+AC99*AC$17+AD99*AD$17+AE99*AE$17+AF99*AF$17+AG99*AG$17+AH99*AH$17)*24 -> 56 | AJ19: =AJ21-AJ17 -> -12 | AK19: =IF(①初期設定!$D$11="１年変形",IF(AI19>52,"週52時間超",""),"") ->  | AM19: =IF(AN19=12,①初期設定!$D$23,①初期設定!$D$23+COUNTIF($AN$8:AN19,12)) -> 2021 | AN19: =AB33 -> 12
D20: =IF(D19,IF(D19+7>DATE($AM11,$AN11+1,①初期設定!$H$23-1),0,(D19+7)),0) -> 2021-04-11 | E20: =IF(E19,IF(E19+7>DATE($AM11,$AN11+1,①初期設定!$H$23-1),0,(E19+7)),0) -> 2021-04-12 | F20: =IF(F19,IF(F19+7>DATE($AM11,$AN11+1,①初期設定!$H$23-1),0,(F19+7)),0) -> 2021-04-13 | G20: =IF(G19,IF(G19+7>DATE($AM11,$AN11+1,①初期設定!$H$23-1),0,(G19+7)),0) -> 2021-04-14 | H20: =IF(H19,IF(H19+7>DATE($AM11,$AN11+1,①初期設定!$H$23-1),0,(H19+7)),0) -> 2021-04-15 | I20: =IF(I19,IF(I19+7>DATE($AM11,$AN11+1,①初期設定!$H$23-1),0,(I19+7)),0) -> 2021-04-16 | J20: =IF(J19,IF(J19+7>DATE($AM11,$AN11+1,①初期設定!$H$23-1),0,(J19+7)),0) -> 2021-04-17 | K20: 56 | L20: 暦日数 | M20: =IF(①初期設定!$D$11="１年変形",IF(K20>52,"週52時間超",""),"") ->  | P20: =IF(P19,IF(P19+7>DATE($AM12,$AN12+1,①初期設定!$H$23-1),0,(P19+7)),0) -> 2021-05-09 | Q20: =IF(Q19,IF(Q19+7>DATE($AM12,$AN12+1,①初期設定!$H$23-1),0,(Q19+7)),0) -> 2021-05-10 | R20: =IF(R19,IF(R19+7>DATE($AM12,$AN12+1,①初期設定!$H$23-1),0,(R19+7)),0) -> 2021-05-11 | S20: =IF(S19,IF(S19+7>DATE($AM12,$AN12+1,①初期設定!$H$23-1),0,(S19+7)),0) -> 2021-05-12 | T20: =IF(T19,IF(T19+7>DATE($AM12,$AN12+1,①初期設定!$H$23-1),0,(T19+7)),0) -> 2021-05-13 | U20: =IF(U19,IF(U19+7>DATE($AM12,$AN12+1,①初期設定!$H$23-1),0,(U19+7)),0) -> 2021-05-14 | V20: =IF(V19,IF(V19+7>DATE($AM12,$AN12+1,①初期設定!$H$23-1),0,(V19+7)),0) -> 2021-05-15 | W20: 56 | X20: 暦日数 | Y20: =IF(①初期設定!$D$11="１年変形",IF(W20>52,"週52時間超",""),"") ->  | AB20: =IF(AB19,IF(AB19+7>DATE($AM13,$AN13+1,①初期設定!$H$23-1),0,(AB19+7)),0) -> 2021-06-13 | AC20: =IF(AC19,IF(AC19+7>DATE($AM13,$AN13+1,①初期設定!$H$23-1),0,(AC19+7)),0) -> 2021-06-14 | AD20: =IF(AD19,IF(AD19+7>DATE($AM13,$AN13+1,①初期設定!$H$23-1),0,(AD19+7)),0) -> 2021-06-15 | AE20: =IF(AE19,IF(AE19+7>DATE($AM13,$AN13+1,①初期設定!$H$23-1),0,(AE19+7)),0) -> 2021-06-16 | AF20: =IF(AF19,IF(AF19+7>DATE($AM13,$AN13+1,①初期設定!$H$23-1),0,(AF19+7)),0) -> 2021-06-17 | AG20: =IF(AG19,IF(AG19+7>DATE($AM13,$AN13+1,①初期設定!$H$23-1),0,(AG19+7)),0) -> 2021-06-18 | AH20: =IF(AH19,IF(AH19+7>DATE($AM13,$AN13+1,①初期設定!$H$23-1),0,(AH19+7)),0) -> 2021-06-19 | AI20: 56 | AJ20: 暦日数 | AK20: =IF(①初期設定!$D$11="１年変形",IF(AI20>52,"週52時間超",""),"") -> 
D21: =IF(D20,IF(D20+7>DATE($AM11,$AN11+1,①初期設定!$H$23-1),0,(D20+7)),0) -> 2021-04-18 | E21: =IF(E20,IF(E20+7>DATE($AM11,$AN11+1,①初期設定!$H$23-1),0,(E20+7)),0) -> 2021-04-19 | F21: =IF(F20,IF(F20+7>DATE($AM11,$AN11+1,①初期設定!$H$23-1),0,(F20+7)),0) -> 2021-04-20 | G21: =IF(G20,IF(G20+7>DATE($AM11,$AN11+1,①初期設定!$H$23-1),0,(G20+7)),0) -> 2021-04-21 | H21: =IF(H20,IF(H20+7>DATE($AM11,$AN11+1,①初期設定!$H$23-1),0,(H20+7)),0) -> 2021-04-22 | I21: =IF(I20,IF(I20+7>DATE($AM11,$AN11+1,①初期設定!$H$23-1),0,(I20+7)),0) -> 2021-04-23 | J21: =IF(J20,IF(J20+7>DATE($AM11,$AN11+1,①初期設定!$H$23-1),0,(J20+7)),0) -> 2021-04-24 | K21: 56 | L21: =COUNTIF(D18:J23,"<>0") -> 30 | M21: =IF(①初期設定!$D$11="１年変形",IF(K21>52,"週52時間超",""),"") ->  | P21: =IF(P20,IF(P20+7>DATE($AM12,$AN12+1,①初期設定!$H$23-1),0,(P20+7)),0) -> 2021-05-16 | Q21: =IF(Q20,IF(Q20+7>DATE($AM12,$AN12+1,①初期設定!$H$23-1),0,(Q20+7)),0) -> 2021-05-17 | R21: =IF(R20,IF(R20+7>DATE($AM12,$AN12+1,①初期設定!$H$23-1),0,(R20+7)),0) -> 2021-05-18 | S21: =IF(S20,IF(S20+7>DATE($AM12,$AN12+1,①初期設定!$H$23-1),0,(S20+7)),0) -> 2021-05-19 | T21: =IF(T20,IF(T20+7>DATE($AM12,$AN12+1,①初期設定!$H$23-1),0,(T20+7)),0) -> 2021-05-20 | U21: =IF(U20,IF(U20+7>DATE($AM12,$AN12+1,①初期設定!$H$23-1),0,(U20+7)),0) -> 2021-05-21 | V21: =IF(V20,IF(V20+7>DATE($AM12,$AN12+1,①初期設定!$H$23-1),0,(V20+7)),0) -> 2021-05-22 | W21: 56 | X21: =COUNTIF(P18:V23,"<>0") -> 31 | Y21: =IF(①初期設定!$D$11="１年変形",IF(W21>52,"週52時間超",""),"") ->  | AB21: =IF(AB20,IF(AB20+7>DATE($AM13,$AN13+1,①初期設定!$H$23-1),0,(AB20+7)),0) -> 2021-06-20 | AC21: =IF(AC20,IF(AC20+7>DATE($AM13,$AN13+1,①初期設定!$H$23-1),0,(AC20+7)),0) -> 2021-06-21 | AD21: =IF(AD20,IF(AD20+7>DATE($AM13,$AN13+1,①初期設定!$H$23-1),0,(AD20+7)),0) -> 2021-06-22 | AE21: =IF(AE20,IF(AE20+7>DATE($AM13,$AN13+1,①初期設定!$H$23-1),0,(AE20+7)),0) -> 2021-06-23 | AF21: =IF(AF20,IF(AF20+7>DATE($AM13,$AN13+1,①初期設定!$H$23-1),0,(AF20+7)),0) -> 2021-06-24 | AG21: =IF(AG20,IF(AG20+7>DATE($AM13,$AN13+1,①初期設定!$H$23-1),0,(AG20+7)),0) -> 2021-06-25 | AH21: =IF(AH20,IF(AH20+7>DATE($AM13,$AN13+1,①初期設定!$H$23-1),0,(AH20+7)),0) -> 2021-06-26 | AI21: 56 | AJ21: =COUNTIF(AB18:AH23,"<>0") -> 30 | AK21: =IF(①初期設定!$D$11="１年変形",IF(AI21>52,"週52時間超",""),"") ->  | AM21: 日 | AN21: 1 | AO21: 日 | AP21: -1
D22: =IF(D21,IF(D21+7>DATE($AM11,$AN11+1,①初期設定!$H$23-1),0,(D21+7)),0) -> 2021-04-25 | E22: =IF(E21,IF(E21+7>DATE($AM11,$AN11+1,①初期設定!$H$23-1),0,(E21+7)),0) -> 2021-04-26 | F22: =IF(F21,IF(F21+7>DATE($AM11,$AN11+1,①初期設定!$H$23-1),0,(F21+7)),0) -> 2021-04-27 | G22: =IF(G21,IF(G21+7>DATE($AM11,$AN11+1,①初期設定!$H$23-1),0,(G21+7)),0) -> 2021-04-28 | H22: =IF(H21,IF(H21+7>DATE($AM11,$AN11+1,①初期設定!$H$23-1),0,(H21+7)),0) -> 2021-04-29 | I22: =IF(I21,IF(I21+7>DATE($AM11,$AN11+1,①初期設定!$H$23-1),0,(I21+7)),0) -> 2021-04-30 | J22: =IF(J21,IF(J21+7>DATE($AM11,$AN11+1,①初期設定!$H$23-1),0,(J21+7)),0) -> 00:00:00 | K22: 56 | L22: 月所定労働時間 | M22: =IF(①初期設定!$D$11="１カ月変形",IF(L23>K15,"総枠超え",""),IF(①初期設定!$D$11="１年変形",IF(K22>52,"週52時間超",""),"")) ->  | P22: =IF(P21,IF(P21+7>DATE($AM12,$AN12+1,①初期設定!$H$23-1),0,(P21+7)),0) -> 2021-05-23 | Q22: =IF(Q21,IF(Q21+7>DATE($AM12,$AN12+1,①初期設定!$H$23-1),0,(Q21+7)),0) -> 2021-05-24 | R22: =IF(R21,IF(R21+7>DATE($AM12,$AN12+1,①初期設定!$H$23-1),0,(R21+7)),0) -> 2021-05-25 | S22: =IF(S21,IF(S21+7>DATE($AM12,$AN12+1,①初期設定!$H$23-1),0,(S21+7)),0) -> 2021-05-26 | T22: =IF(T21,IF(T21+7>DATE($AM12,$AN12+1,①初期設定!$H$23-1),0,(T21+7)),0) -> 2021-05-27 | U22: =IF(U21,IF(U21+7>DATE($AM12,$AN12+1,①初期設定!$H$23-1),0,(U21+7)),0) -> 2021-05-28 | V22: =IF(V21,IF(V21+7>DATE($AM12,$AN12+1,①初期設定!$H$23-1),0,(V21+7)),0) -> 2021-05-29 | W22: 56 | X22: 月所定労働時間 | Y22: =IF(①初期設定!$D$11="１カ月変形",IF(X23>W15,"総枠超え",""),IF(①初期設定!$D$11="１年変形",IF(W22>52,"週52時間超",""),"")) ->  | AB22: =IF(AB21,IF(AB21+7>DATE($AM13,$AN13+1,①初期設定!$H$23-1),0,(AB21+7)),0) -> 2021-06-27 | AC22: =IF(AC21,IF(AC21+7>DATE($AM13,$AN13+1,①初期設定!$H$23-1),0,(AC21+7)),0) -> 2021-06-28 | AD22: =IF(AD21,IF(AD21+7>DATE($AM13,$AN13+1,①初期設定!$H$23-1),0,(AD21+7)),0) -> 2021-06-29 | AE22: =IF(AE21,IF(AE21+7>DATE($AM13,$AN13+1,①初期設定!$H$23-1),0,(AE21+7)),0) -> 2021-06-30 | AF22: =IF(AF21,IF(AF21+7>DATE($AM13,$AN13+1,①初期設定!$H$23-1),0,(AF21+7)),0) -> 00:00:00 | AG22: =IF(AG21,IF(AG21+7>DATE($AM13,$AN13+1,①初期設定!$H$23-1),0,(AG21+7)),0) -> 00:00:00 | AH22: =IF(AH21,IF(AH21+7>DATE($AM13,$AN13+1,①初期設定!$H$23-1),0,(AH21+7)),0) -> 00:00:00 | AI22: 56 | AJ22: 月所定労働時間 | AK22: =IF(①初期設定!$D$11="１カ月変形",IF(AJ23>AI15,"総枠超え",""),IF(①初期設定!$D$11="１年変形",IF(AI22>52,"週52時間超",""),"")) ->  | AM22: 月 | AN22: 2 | AO22: 月 | AP22: -3
D23: =IF(D22,IF(D22+7>DATE($AM11,$AN11+1,①初期設定!$H$23-1),0,(D22+7)),0) -> 00:00:00 | E23: =IF(E22,IF(E22+7>DATE($AM11,$AN11+1,①初期設定!$H$23-1),0,(E22+7)),0) -> 00:00:00 | F23: =IF(F22,IF(F22+7>DATE($AM11,$AN11+1,①初期設定!$H$23-1),0,(F22+7)),0) -> 00:00:00 | G23: =IF(G22,IF(G22+7>DATE($AM11,$AN11+1,①初期設定!$H$23-1),0,(G22+7)),0) -> 00:00:00 | H23: =IF(H22,IF(H22+7>DATE($AM11,$AN11+1,①初期設定!$H$23-1),0,(H22+7)),0) -> 00:00:00 | I23: =IF(I22,IF(I22+7>DATE($AM11,$AN11+1,①初期設定!$H$23-1),0,(I22+7)),0) -> 00:00:00 | J23: =IF(J22,IF(J22+7>DATE($AM11,$AN11+1,①初期設定!$H$23-1),0,(J22+7)),0) -> 00:00:00 | K23: =(D103*D$17+E103*E$17+F103*F$17+G103*G$17+H103*H$17+I103*I$17+J103*J$17)*24 -> 56 | L23: =SUM(K18:K23) -> 336 | M23: =IF(①初期設定!$D$11="１カ月変形",IF(L23-K15>0,L23-K15,0),IF(①初期設定!$D$11="１年変形",IF(K23>52,"週52時間超",""),"")) ->  | P23: =IF(P22,IF(P22+7>DATE($AM12,$AN12+1,①初期設定!$H$23-1),0,(P22+7)),0) -> 2021-05-30 | Q23: =IF(Q22,IF(Q22+7>DATE($AM12,$AN12+1,①初期設定!$H$23-1),0,(Q22+7)),0) -> 2021-05-31 | R23: =IF(R22,IF(R22+7>DATE($AM12,$AN12+1,①初期設定!$H$23-1),0,(R22+7)),0) -> 00:00:00 | S23: =IF(S22,IF(S22+7>DATE($AM12,$AN12+1,①初期設定!$H$23-1),0,(S22+7)),0) -> 00:00:00 | T23: =IF(T22,IF(T22+7>DATE($AM12,$AN12+1,①初期設定!$H$23-1),0,(T22+7)),0) -> 00:00:00 | U23: =IF(U22,IF(U22+7>DATE($AM12,$AN12+1,①初期設定!$H$23-1),0,(U22+7)),0) -> 00:00:00 | V23: =IF(V22,IF(V22+7>DATE($AM12,$AN12+1,①初期設定!$H$23-1),0,(V22+7)),0) -> 00:00:00 | W23: 56 | X23: =SUM(W18:W23) -> 336 | Y23: =IF(①初期設定!$D$11="１カ月変形",IF(X23-W15>0,X23-W15,0),IF(①初期設定!$D$11="１年変形",IF(W23>52,"週52時間超",""),"")) ->  | AB23: =IF(AB22,IF(AB22+7>DATE($AM13,$AN13+1,①初期設定!$H$23-1),0,(AB22+7)),0) -> 00:00:00 | AC23: =IF(AC22,IF(AC22+7>DATE($AM13,$AN13+1,①初期設定!$H$23-1),0,(AC22+7)),0) -> 00:00:00 | AD23: =IF(AD22,IF(AD22+7>DATE($AM13,$AN13+1,①初期設定!$H$23-1),0,(AD22+7)),0) -> 00:00:00 | AE23: =IF(AE22,IF(AE22+7>DATE($AM13,$AN13+1,①初期設定!$H$23-1),0,(AE22+7)),0) -> 00:00:00 | AF23: =IF(AF22,IF(AF22+7>DATE($AM13,$AN13+1,①初期設定!$H$23-1),0,(AF22+7)),0) -> 00:00:00 | AG23: =IF(AG22,IF(AG22+7>DATE($AM13,$AN13+1,①初期設定!$H$23-1),0,(AG22+7)),0) -> 00:00:00 | AH23: =IF(AH22,IF(AH22+7>DATE($AM13,$AN13+1,①初期設定!$H$23-1),0,(AH22+7)),0) -> 00:00:00 | AI23: 56 | AJ23: =SUM(AI18:AI23) -> 336 | AK23: =IF(①初期設定!$D$11="１カ月変形",IF(AJ23-AI15>0,AJ23-AI15,0),IF(①初期設定!$D$11="１年変形",IF(AI23>52,"週52時間超",""),"")) ->  | AM23: 火 | AN23: 3 | AO23: 火 | AP23: -5
D24: =IF(①初期設定!$H$23=1,IF(AB15=12,1,AB15+1),AD15) -> 7 | E24: =IF(F24="","","～") ->  | F24: =IF(①初期設定!$H$23=1,"",IF(D24=12,D24-11,D24+1)) ->  | K24: =IF(①初期設定!$D$11="１カ月変形",IF(①初期設定!$D$4="一般",ROUNDDOWN(40*L30/7,1),ROUNDDOWN(44*L30/7,1)),"") ->  | P24: =IF(①初期設定!$H$23=1,IF(D24=12,1,D24+1),F24) -> 8 | Q24: =IF(R24="","","～") ->  | R24: =IF(①初期設定!$H$23=1,"",IF(P24=12,P24-11,P24+1)) ->  | W24: =IF(①初期設定!$D$11="１カ月変形",IF(①初期設定!$D$4="一般",ROUNDDOWN(40*X30/7,1),ROUNDDOWN(44*X30/7,1)),"") ->  | AB24: =IF(①初期設定!$H$23=1,IF(P24=12,1,P24+1),R24) -> 9 | AC24: =IF(AD24="","","～") ->  | AD24: =IF(①初期設定!$H$23=1,"",IF(AB24=12,AB24-11,AB24+1)) ->  | AI24: =IF(①初期設定!$D$11="１カ月変形",IF(①初期設定!$D$4="一般",ROUNDDOWN(40*AJ30/7,1),ROUNDDOWN(44*AJ30/7,1)),"") ->  | AM24: 水 | AN24: 4 | AO24: 水 | AP24: -7
D25: =①初期設定!$D$29 -> 日 | E25: =①初期設定!$E$29 -> 月 | F25: =①初期設定!$F$29 -> 火 | G25: =①初期設定!$G$29 -> 水 | H25: =①初期設定!$H$29 -> 木 | I25: =①初期設定!$I$29 -> 金 | J25: =①初期設定!$J$29 -> 土 | K25: 週所定 | L25: 所定労働日数 | P25: =①初期設定!$D$29 -> 日 | Q25: =①初期設定!$E$29 -> 月 | R25: =①初期設定!$F$29 -> 火 | S25: =①初期設定!$G$29 -> 水 | T25: =①初期設定!$H$29 -> 木 | U25: =①初期設定!$I$29 -> 金 | V25: =①初期設定!$J$29 -> 土 | W25: 週所定 | X25: 所定労働日数 | AB25: =①初期設定!$D$29 -> 日 | AC25: =①初期設定!$E$29 -> 月 | AD25: =①初期設定!$F$29 -> 火 | AE25: =①初期設定!$G$29 -> 水 | AF25: =①初期設定!$H$29 -> 木 | AG25: =①初期設定!$I$29 -> 金 | AH25: =①初期設定!$J$29 -> 土 | AI25: 週所定 | AJ25: 所定労働日数 | AM25: 木 | AN25: 5 | AO25: 木 | AP25: -9
D26: =①初期設定!$D$30 -> 0.3333333333 | E26: =①初期設定!$E$30 -> 0.3333333333 | F26: =①初期設定!$F$30 -> 0.3333333333 | G26: =①初期設定!$G$30 -> 0.3333333333 | H26: =①初期設定!$H$30 -> 0.3333333333 | I26: =①初期設定!$I$30 -> 0.3333333333 | J26: =①初期設定!$J$30 -> 0.3333333333 | K26: 労働Ｈ | L26: =COUNTIF(D107:J112,1) -> 42 | M26: =IF(①初期設定!$D$11="１年変形",IF(OR(D26*24>10,E26*24>10,F26*24>10,G26*24>10,H26*24>10,I26*24>10,J26*24>10),"10時間超",""),IF(①初期設定!$D$11="適用なし",IF(OR(D26*24>8,E26*24>8,F26*24>8,G26*24>8,H26*24>8,I26*24>8,J26*24>8),"8時間超",""),"")) ->  | P26: =①初期設定!$D$30 -> 0.3333333333 | Q26: =①初期設定!$E$30 -> 0.3333333333 | R26: =①初期設定!$F$30 -> 0.3333333333 | S26: =①初期設定!$G$30 -> 0.3333333333 | T26: =①初期設定!$H$30 -> 0.3333333333 | U26: =①初期設定!$I$30 -> 0.3333333333 | V26: =①初期設定!$J$30 -> 0.3333333333 | W26: 労働Ｈ | X26: =COUNTIF(P107:V112,1) -> 42 | Y26: =IF(①初期設定!$D$11="１年変形",IF(OR(P26*24>10,Q26*24>10,R26*24>10,S26*24>10,T26*24>10,U26*24>10,V26*24>10),"10時間超",""),IF(①初期設定!$D$11="適用なし",IF(OR(P26*24>8,Q26*24>8,R26*24>8,S26*24>8,T26*24>8,U26*24>8,V26*24>8),"8時間超",""),"")) ->  | AB26: =①初期設定!$D$30 -> 0.3333333333 | AC26: =①初期設定!$E$30 -> 0.3333333333 | AD26: =①初期設定!$F$30 -> 0.3333333333 | AE26: =①初期設定!$G$30 -> 0.3333333333 | AF26: =①初期設定!$H$30 -> 0.3333333333 | AG26: =①初期設定!$I$30 -> 0.3333333333 | AH26: =①初期設定!$J$30 -> 0.3333333333 | AI26: 労働Ｈ | AJ26: =COUNTIF(AB107:AH112,1) -> 42 | AK26: =IF(①初期設定!$D$11="１年変形",IF(OR(AB26*24>10,AC26*24>10,AD26*24>10,AE26*24>10,AF26*24>10,AG26*24>10,AH26*24>10),"10時間超",""),IF(①初期設定!$D$11="適用なし",IF(OR(AB26*24>8,AC26*24>8,AD26*24>8,AE26*24>8,AF26*24>8,AG26*24>8,AH26*24>8),"8時間超",""),"")) ->  | AM26: 金 | AN26: 6 | AO26: 金 | AP26: -11
D27: =($J27-7+COLUMN(A27))*(COLUMN(B27)>WEEKDAY(DATE($AM14,$AN14,①初期設定!$H$23+(VLOOKUP(①初期設定!$J$23,$AM$21:$AN$27,2,FALSE)+VLOOKUP(①初期設定!$J$23,$AO$21:$AP$27,2,FALSE))))) -> 00:00:00 | E27: =($J27-7+COLUMN(B27))*(COLUMN(C27)>WEEKDAY(DATE($AM14,$AN14,①初期設定!$H$23+(VLOOKUP(①初期設定!$J$23,$AM$21:$AN$27,2,FALSE)+VLOOKUP(①初期設定!$J$23,$AO$21:$AP$27,2,FALSE))))) -> 00:00:00 | F27: =($J27-7+COLUMN(C27))*(COLUMN(D27)>WEEKDAY(DATE($AM14,$AN14,①初期設定!$H$23+(VLOOKUP(①初期設定!$J$23,$AM$21:$AN$27,2,FALSE)+VLOOKUP(①初期設定!$J$23,$AO$21:$AP$27,2,FALSE))))) -> 00:00:00 | G27: =($J27-7+COLUMN(D27))*(COLUMN(E27)>WEEKDAY(DATE($AM14,$AN14,①初期設定!$H$23+(VLOOKUP(①初期設定!$J$23,$AM$21:$AN$27,2,FALSE)+VLOOKUP(①初期設定!$J$23,$AO$21:$AP$27,2,FALSE))))) -> 00:00:00 | H27: =($J27-7+COLUMN(E27))*(COLUMN(F27)>WEEKDAY(DATE($AM14,$AN14,①初期設定!$H$23+(VLOOKUP(①初期設定!$J$23,$AM$21:$AN$27,2,FALSE)+VLOOKUP(①初期設定!$J$23,$AO$21:$AP$27,2,FALSE))))) -> 2021-07-01 | I27: =($J27-7+COLUMN(F27))*(COLUMN(G27)>WEEKDAY(DATE($AM14,$AN14,①初期設定!$H$23+(VLOOKUP(①初期設定!$J$23,$AM$21:$AN$27,2,FALSE)+VLOOKUP(①初期設定!$J$23,$AO$21:$AP$27,2,FALSE))))) -> 2021-07-02 | J27: =DATE($AM14,$AN14,①初期設定!$H$23+7-WEEKDAY(DATE($AM14,$AN14,①初期設定!$H$23+(VLOOKUP(①初期設定!$J$23,$AM$21:$AN$27,2,FALSE)+VLOOKUP(①初期設定!$J$23,$AO$21:$AP$27,2,FALSE))))) -> 2021-07-03 | K27: =(D107*D$26+E107*E$26+F107*F$26+G107*G$26+H107*H$26+I107*I$26+J107*J$26)*24 -> 56 | L27: 所定休日数 | M27: =IF(①初期設定!$D$11="適用なし",IF(①初期設定!$D$4="一般",IF(K27+IF(AH22=0,AI22,AI23)>40,"週40時間超",""),IF(K27+IF(AH22=0,AI22,AI23)>44,"週44時間超","")),IF(①初期設定!$D$11="１年変形",IF(K27>52,"週52時間超",""),"")) -> 週40時間超 | P27: =($V27-7+COLUMN(M27)-12)*(COLUMN(N27)-12>WEEKDAY(DATE($AM15,$AN15,①初期設定!$H$23+(VLOOKUP(①初期設定!$J$23,$AM$21:$AN$27,2,FALSE)+VLOOKUP(①初期設定!$J$23,$AO$21:$AP$27,2,FALSE))))) -> 2021-08-01 | Q27: =($V27-7+COLUMN(N27)-12)*(COLUMN(O27)-12>WEEKDAY(DATE($AM15,$AN15,①初期設定!$H$23+(VLOOKUP(①初期設定!$J$23,$AM$21:$AN$27,2,FALSE)+VLOOKUP(①初期設定!$J$23,$AO$21:$AP$27,2,FALSE))))) -> 2021-08-02 | R27: =($V27-7+COLUMN(O27)-12)*(COLUMN(P27)-12>WEEKDAY(DATE($AM15,$AN15,①初期設定!$H$23+(VLOOKUP(①初期設定!$J$23,$AM$21:$AN$27,2,FALSE)+VLOOKUP(①初期設定!$J$23,$AO$21:$AP$27,2,FALSE))))) -> 2021-08-03 | S27: =($V27-7+COLUMN(P27)-12)*(COLUMN(Q27)-12>WEEKDAY(DATE($AM15,$AN15,①初期設定!$H$23+(VLOOKUP(①初期設定!$J$23,$AM$21:$AN$27,2,FALSE)+VLOOKUP(①初期設定!$J$23,$AO$21:$AP$27,2,FALSE))))) -> 2021-08-04 | T27: =($V27-7+COLUMN(Q27)-12)*(COLUMN(R27)-12>WEEKDAY(DATE($AM15,$AN15,①初期設定!$H$23+(VLOOKUP(①初期設定!$J$23,$AM$21:$AN$27,2,FALSE)+VLOOKUP(①初期設定!$J$23,$AO$21:$AP$27,2,FALSE))))) -> 2021-08-05 | U27: =($V27-7+COLUMN(R27)-12)*(COLUMN(S27)-12>WEEKDAY(DATE($AM15,$AN15,①初期設定!$H$23+(VLOOKUP(①初期設定!$J$23,$AM$21:$AN$27,2,FALSE)+VLOOKUP(①初期設定!$J$23,$AO$21:$AP$27,2,FALSE))))) -> 2021-08-06 | V27: =DATE($AM15,$AN15,①初期設定!$H$23+7-WEEKDAY(DATE($AM15,$AN15,①初期設定!$H$23+(VLOOKUP(①初期設定!$J$23,$AM$21:$AN$27,2,FALSE)+VLOOKUP(①初期設定!$J$23,$AO$21:$AP$27,2,FALSE))))) -> 2021-08-07 | W27: =(P107*P$26+Q107*Q$26+R107*R$26+S107*S$26+T107*T$26+U107*U$26+V107*V$26)*24 -> 56 | X27: 所定休日数 | Y27: =IF(①初期設定!$D$11="適用なし",IF(①初期設定!$D$4="一般",IF(W27+IF(J31=0,K31,K32)>40,"週40時間超",""),IF(W27+IF(J31=0,K31,K32)>44,"週44時間超","")),IF(①初期設定!$D$11="１年変形",IF(W27>52,"週52時間超",""),"")) -> 週40時間超 | AB27: =($AH27-7+COLUMN(Y27)-24)*(COLUMN(Z27)-24>WEEKDAY(DATE($AM16,$AN16,①初期設定!$H$23+(VLOOKUP(①初期設定!$J$23,$AM$21:$AN$27,2,FALSE)+VLOOKUP(①初期設定!$J$23,$AO$21:$AP$27,2,FALSE))))) -> 00:00:00 | AC27: =($AH27-7+COLUMN(Z27)-24)*(COLUMN(AA27)-24>WEEKDAY(DATE($AM16,$AN16,①初期設定!$H$23+(VLOOKUP(①初期設定!$J$23,$AM$21:$AN$27,2,FALSE)+VLOOKUP(①初期設定!$J$23,$AO$21:$AP$27,2,FALSE))))) -> 00:00:00 | AD27: =($AH27-7+COLUMN(AA27)-24)*(COLUMN(AB27)-24>WEEKDAY(DATE($AM16,$AN16,①初期設定!$H$23+(VLOOKUP(①初期設定!$J$23,$AM$21:$AN$27,2,FALSE)+VLOOKUP(①初期設定!$J$23,$AO$21:$AP$27,2,FALSE))))) -> 00:00:00 | AE27: =($AH27-7+COLUMN(AB27)-24)*(COLUMN(AC27)-24>WEEKDAY(DATE($AM16,$AN16,①初期設定!$H$23+(VLOOKUP(①初期設定!$J$23,$AM$21:$AN$27,2,FALSE)+VLOOKUP(①初期設定!$J$23,$AO$21:$AP$27,2,FALSE))))) -> 2021-09-01 | AF27: =($AH27-7+COLUMN(AC27)-24)*(COLUMN(AD27)-24>WEEKDAY(DATE($AM16,$AN16,①初期設定!$H$23+(VLOOKUP(①初期設定!$J$23,$AM$21:$AN$27,2,FALSE)+VLOOKUP(①初期設定!$J$23,$AO$21:$AP$27,2,FALSE))))) -> 2021-09-02 | AG27: =($AH27-7+COLUMN(AD27)-24)*(COLUMN(AE27)-24>WEEKDAY(DATE($AM16,$AN16,①初期設定!$H$23+(VLOOKUP(①初期設定!$J$23,$AM$21:$AN$27,2,FALSE)+VLOOKUP(①初期設定!$J$23,$AO$21:$AP$27,2,FALSE))))) -> 2021-09-03 | AH27: =DATE($AM16,$AN16,①初期設定!$H$23+7-WEEKDAY(DATE($AM16,$AN16,①初期設定!$H$23+(VLOOKUP(①初期設定!$J$23,$AM$21:$AN$27,2,FALSE)+VLOOKUP(①初期設定!$J$23,$AO$21:$AP$27,2,FALSE))))) -> 2021-09-04 | AI27: =(AB107*AB$26+AC107*AC$26+AD107*AD$26+AE107*AE$26+AF107*AF$26+AG107*AG$26+AH107*AH$26)*24 -> 56 | AJ27: 所定休日数 | AK27: =IF(①初期設定!$D$11="適用なし",IF(①初期設定!$D$4="一般",IF(AI27+IF(V31=0,W31,W32)>40,"週40時間超",""),IF(AI27+IF(V31=0,W31,W32)>44,"週44時間超","")),IF(①初期設定!$D$11="１年変形",IF(AI27>52,"週52時間超",""),"")) -> 週40時間超 | AM27: 土 | AN27: 7 | AO27: 土 | AP27: -13
D28: =J27+1 -> 2021-07-04 | E28: =D28+1 -> 2021-07-05 | F28: =E28+1 -> 2021-07-06 | G28: =F28+1 -> 2021-07-07 | H28: =G28+1 -> 2021-07-08 | I28: =H28+1 -> 2021-07-09 | J28: =I28+1 -> 2021-07-10 | K28: =(D108*D$26+E108*E$26+F108*F$26+G108*G$26+H108*H$26+I108*I$26+J108*J$26)*24 -> 56 | L28: =L30-L26 -> -11 | M28: =IF(①初期設定!$D$11="１年変形",IF(K28>52,"週52時間超",""),"") ->  | P28: =V27+1 -> 2021-08-08 | Q28: =P28+1 -> 2021-08-09 | R28: =Q28+1 -> 2021-08-10 | S28: =R28+1 -> 2021-08-11 | T28: =S28+1 -> 2021-08-12 | U28: =T28+1 -> 2021-08-13 | V28: =U28+1 -> 2021-08-14 | W28: =(P108*P$26+Q108*Q$26+R108*R$26+S108*S$26+T108*T$26+U108*U$26+V108*V$26)*24 -> 56 | X28: =X30-X26 -> -11 | Y28: =IF(①初期設定!$D$11="１年変形",IF(W28>52,"週52時間超",""),"") ->  | AB28: =AH27+1 -> 2021-09-05 | AC28: =AB28+1 -> 2021-09-06 | AD28: =AC28+1 -> 2021-09-07 | AE28: =AD28+1 -> 2021-09-08 | AF28: =AE28+1 -> 2021-09-09 | AG28: =AF28+1 -> 2021-09-10 | AH28: =AG28+1 -> 2021-09-11 | AI28: =(AB108*AB$26+AC108*AC$26+AD108*AD$26+AE108*AE$26+AF108*AF$26+AG108*AG$26+AH108*AH$26)*24 -> 56 | AJ28: =AJ30-AJ26 -> -12 | AK28: =IF(①初期設定!$D$11="１年変形",IF(AI28>52,"週52時間超",""),"") ->  | AN28: 8 | AO28: 日
D29: =IF(D28,IF(D28+7>DATE($AM14,$AN14+1,①初期設定!$H$23-1),0,(D28+7)),0) -> 2021-07-11 | E29: =IF(E28,IF(E28+7>DATE($AM14,$AN14+1,①初期設定!$H$23-1),0,(E28+7)),0) -> 2021-07-12 | F29: =IF(F28,IF(F28+7>DATE($AM14,$AN14+1,①初期設定!$H$23-1),0,(F28+7)),0) -> 2021-07-13 | G29: =IF(G28,IF(G28+7>DATE($AM14,$AN14+1,①初期設定!$H$23-1),0,(G28+7)),0) -> 2021-07-14 | H29: =IF(H28,IF(H28+7>DATE($AM14,$AN14+1,①初期設定!$H$23-1),0,(H28+7)),0) -> 2021-07-15 | I29: =IF(I28,IF(I28+7>DATE($AM14,$AN14+1,①初期設定!$H$23-1),0,(I28+7)),0) -> 2021-07-16 | J29: =IF(J28,IF(J28+7>DATE($AM14,$AN14+1,①初期設定!$H$23-1),0,(J28+7)),0) -> 2021-07-17 | K29: 56 | L29: 暦日数 | M29: =IF(①初期設定!$D$11="１年変形",IF(K29>52,"週52時間超",""),"") ->  | P29: =IF(P28,IF(P28+7>DATE($AM15,$AN15+1,①初期設定!$H$23-1),0,(P28+7)),0) -> 2021-08-15 | Q29: =IF(Q28,IF(Q28+7>DATE($AM15,$AN15+1,①初期設定!$H$23-1),0,(Q28+7)),0) -> 2021-08-16 | R29: =IF(R28,IF(R28+7>DATE($AM15,$AN15+1,①初期設定!$H$23-1),0,(R28+7)),0) -> 2021-08-17 | S29: =IF(S28,IF(S28+7>DATE($AM15,$AN15+1,①初期設定!$H$23-1),0,(S28+7)),0) -> 2021-08-18 | T29: =IF(T28,IF(T28+7>DATE($AM15,$AN15+1,①初期設定!$H$23-1),0,(T28+7)),0) -> 2021-08-19 | U29: =IF(U28,IF(U28+7>DATE($AM15,$AN15+1,①初期設定!$H$23-1),0,(U28+7)),0) -> 2021-08-20 | V29: =IF(V28,IF(V28+7>DATE($AM15,$AN15+1,①初期設定!$H$23-1),0,(V28+7)),0) -> 2021-08-21 | W29: 56 | X29: 暦日数 | Y29: =IF(①初期設定!$D$11="１年変形",IF(W29>52,"週52時間超",""),"") ->  | AB29: =IF(AB28,IF(AB28+7>DATE($AM16,$AN16+1,①初期設定!$H$23-1),0,(AB28+7)),0) -> 2021-09-12 | AC29: =IF(AC28,IF(AC28+7>DATE($AM16,$AN16+1,①初期設定!$H$23-1),0,(AC28+7)),0) -> 2021-09-13 | AD29: =IF(AD28,IF(AD28+7>DATE($AM16,$AN16+1,①初期設定!$H$23-1),0,(AD28+7)),0) -> 2021-09-14 | AE29: =IF(AE28,IF(AE28+7>DATE($AM16,$AN16+1,①初期設定!$H$23-1),0,(AE28+7)),0) -> 2021-09-15 | AF29: =IF(AF28,IF(AF28+7>DATE($AM16,$AN16+1,①初期設定!$H$23-1),0,(AF28+7)),0) -> 2021-09-16 | AG29: =IF(AG28,IF(AG28+7>DATE($AM16,$AN16+1,①初期設定!$H$23-1),0,(AG28+7)),0) -> 2021-09-17 | AH29: =IF(AH28,IF(AH28+7>DATE($AM16,$AN16+1,①初期設定!$H$23-1),0,(AH28+7)),0) -> 2021-09-18 | AI29: 56 | AJ29: 暦日数 | AK29: =IF(①初期設定!$D$11="１年変形",IF(AI29>52,"週52時間超",""),"") ->  | AN29: 9 | AO29: 月
D30: =IF(D29,IF(D29+7>DATE($AM14,$AN14+1,①初期設定!$H$23-1),0,(D29+7)),0) -> 2021-07-18 | E30: =IF(E29,IF(E29+7>DATE($AM14,$AN14+1,①初期設定!$H$23-1),0,(E29+7)),0) -> 2021-07-19 | F30: =IF(F29,IF(F29+7>DATE($AM14,$AN14+1,①初期設定!$H$23-1),0,(F29+7)),0) -> 2021-07-20 | G30: =IF(G29,IF(G29+7>DATE($AM14,$AN14+1,①初期設定!$H$23-1),0,(G29+7)),0) -> 2021-07-21 | H30: =IF(H29,IF(H29+7>DATE($AM14,$AN14+1,①初期設定!$H$23-1),0,(H29+7)),0) -> 2021-07-22 | I30: =IF(I29,IF(I29+7>DATE($AM14,$AN14+1,①初期設定!$H$23-1),0,(I29+7)),0) -> 2021-07-23 | J30: =IF(J29,IF(J29+7>DATE($AM14,$AN14+1,①初期設定!$H$23-1),0,(J29+7)),0) -> 2021-07-24 | K30: 56 | L30: =COUNTIF(D27:J32,"<>0") -> 31 | M30: =IF(①初期設定!$D$11="１年変形",IF(K30>52,"週52時間超",""),"") ->  | P30: =IF(P29,IF(P29+7>DATE($AM15,$AN15+1,①初期設定!$H$23-1),0,(P29+7)),0) -> 2021-08-22 | Q30: =IF(Q29,IF(Q29+7>DATE($AM15,$AN15+1,①初期設定!$H$23-1),0,(Q29+7)),0) -> 2021-08-23 | R30: =IF(R29,IF(R29+7>DATE($AM15,$AN15+1,①初期設定!$H$23-1),0,(R29+7)),0) -> 2021-08-24 | S30: =IF(S29,IF(S29+7>DATE($AM15,$AN15+1,①初期設定!$H$23-1),0,(S29+7)),0) -> 2021-08-25 | T30: =IF(T29,IF(T29+7>DATE($AM15,$AN15+1,①初期設定!$H$23-1),0,(T29+7)),0) -> 2021-08-26 | U30: =IF(U29,IF(U29+7>DATE($AM15,$AN15+1,①初期設定!$H$23-1),0,(U29+7)),0) -> 2021-08-27 | V30: =IF(V29,IF(V29+7>DATE($AM15,$AN15+1,①初期設定!$H$23-1),0,(V29+7)),0) -> 2021-08-28 | W30: 56 | X30: =COUNTIF(P27:V32,"<>0") -> 31 | Y30: =IF(①初期設定!$D$11="１年変形",IF(W30>52,"週52時間超",""),"") ->  | AB30: =IF(AB29,IF(AB29+7>DATE($AM16,$AN16+1,①初期設定!$H$23-1),0,(AB29+7)),0) -> 2021-09-19 | AC30: =IF(AC29,IF(AC29+7>DATE($AM16,$AN16+1,①初期設定!$H$23-1),0,(AC29+7)),0) -> 2021-09-20 | AD30: =IF(AD29,IF(AD29+7>DATE($AM16,$AN16+1,①初期設定!$H$23-1),0,(AD29+7)),0) -> 2021-09-21 | AE30: =IF(AE29,IF(AE29+7>DATE($AM16,$AN16+1,①初期設定!$H$23-1),0,(AE29+7)),0) -> 2021-09-22 | AF30: =IF(AF29,IF(AF29+7>DATE($AM16,$AN16+1,①初期設定!$H$23-1),0,(AF29+7)),0) -> 2021-09-23 | AG30: =IF(AG29,IF(AG29+7>DATE($AM16,$AN16+1,①初期設定!$H$23-1),0,(AG29+7)),0) -> 2021-09-24 | AH30: =IF(AH29,IF(AH29+7>DATE($AM16,$AN16+1,①初期設定!$H$23-1),0,(AH29+7)),0) -> 2021-09-25 | AI30: 56 | AJ30: =COUNTIF(AB27:AH32,"<>0") -> 30 | AK30: =IF(①初期設定!$D$11="１年変形",IF(AI30>52,"週52時間超",""),"") ->  | AN30: 10 | AO30: 火
D31: =IF(D30,IF(D30+7>DATE($AM14,$AN14+1,①初期設定!$H$23-1),0,(D30+7)),0) -> 2021-07-25 | E31: =IF(E30,IF(E30+7>DATE($AM14,$AN14+1,①初期設定!$H$23-1),0,(E30+7)),0) -> 2021-07-26 | F31: =IF(F30,IF(F30+7>DATE($AM14,$AN14+1,①初期設定!$H$23-1),0,(F30+7)),0) -> 2021-07-27 | G31: =IF(G30,IF(G30+7>DATE($AM14,$AN14+1,①初期設定!$H$23-1),0,(G30+7)),0) -> 2021-07-28 | H31: =IF(H30,IF(H30+7>DATE($AM14,$AN14+1,①初期設定!$H$23-1),0,(H30+7)),0) -> 2021-07-29 | I31: =IF(I30,IF(I30+7>DATE($AM14,$AN14+1,①初期設定!$H$23-1),0,(I30+7)),0) -> 2021-07-30 | J31: =IF(J30,IF(J30+7>DATE($AM14,$AN14+1,①初期設定!$H$23-1),0,(J30+7)),0) -> 2021-07-31 | K31: 56 | L31: 月所定労働時間 | M31: =IF(①初期設定!$D$11="１カ月変形",IF(L32>K24,"総枠超え",""),IF(①初期設定!$D$11="１年変形",IF(K31>52,"週52時間超",""),"")) ->  | P31: =IF(P30,IF(P30+7>DATE($AM15,$AN15+1,①初期設定!$H$23-1),0,(P30+7)),0) -> 2021-08-29 | Q31: =IF(Q30,IF(Q30+7>DATE($AM15,$AN15+1,①初期設定!$H$23-1),0,(Q30+7)),0) -> 2021-08-30 | R31: =IF(R30,IF(R30+7>DATE($AM15,$AN15+1,①初期設定!$H$23-1),0,(R30+7)),0) -> 2021-08-31 | S31: =IF(S30,IF(S30+7>DATE($AM15,$AN15+1,①初期設定!$H$23-1),0,(S30+7)),0) -> 00:00:00 | T31: =IF(T30,IF(T30+7>DATE($AM15,$AN15+1,①初期設定!$H$23-1),0,(T30+7)),0) -> 00:00:00 | U31: =IF(U30,IF(U30+7>DATE($AM15,$AN15+1,①初期設定!$H$23-1),0,(U30+7)),0) -> 00:00:00 | V31: =IF(V30,IF(V30+7>DATE($AM15,$AN15+1,①初期設定!$H$23-1),0,(V30+7)),0) -> 00:00:00 | W31: 56 | X31: 月所定労働時間 | Y31: =IF(①初期設定!$D$11="１カ月変形",IF(X32>W24,"総枠超え",""),IF(①初期設定!$D$11="１年変形",IF(W31>52,"週52時間超",""),"")) ->  | AB31: =IF(AB30,IF(AB30+7>DATE($AM16,$AN16+1,①初期設定!$H$23-1),0,(AB30+7)),0) -> 2021-09-26 | AC31: =IF(AC30,IF(AC30+7>DATE($AM16,$AN16+1,①初期設定!$H$23-1),0,(AC30+7)),0) -> 2021-09-27 | AD31: =IF(AD30,IF(AD30+7>DATE($AM16,$AN16+1,①初期設定!$H$23-1),0,(AD30+7)),0) -> 2021-09-28 | AE31: =IF(AE30,IF(AE30+7>DATE($AM16,$AN16+1,①初期設定!$H$23-1),0,(AE30+7)),0) -> 2021-09-29 | AF31: =IF(AF30,IF(AF30+7>DATE($AM16,$AN16+1,①初期設定!$H$23-1),0,(AF30+7)),0) -> 2021-09-30 | AG31: =IF(AG30,IF(AG30+7>DATE($AM16,$AN16+1,①初期設定!$H$23-1),0,(AG30+7)),0) -> 00:00:00 | AH31: =IF(AH30,IF(AH30+7>DATE($AM16,$AN16+1,①初期設定!$H$23-1),0,(AH30+7)),0) -> 00:00:00 | AI31: 56 | AJ31: 月所定労働時間 | AK31: =IF(①初期設定!$D$11="１カ月変形",IF(AJ32>AI24,"総枠超え",""),IF(①初期設定!$D$11="１年変形",IF(AI31>52,"週52時間超",""),"")) ->  | AN31: 11 | AO31: 水
D32: =IF(D31,IF(D31+7>DATE($AM14,$AN14+1,①初期設定!$H$23-1),0,(D31+7)),0) -> 00:00:00 | E32: =IF(E31,IF(E31+7>DATE($AM14,$AN14+1,①初期設定!$H$23-1),0,(E31+7)),0) -> 00:00:00 | F32: =IF(F31,IF(F31+7>DATE($AM14,$AN14+1,①初期設定!$H$23-1),0,(F31+7)),0) -> 00:00:00 | G32: =IF(G31,IF(G31+7>DATE($AM14,$AN14+1,①初期設定!$H$23-1),0,(G31+7)),0) -> 00:00:00 | H32: =IF(H31,IF(H31+7>DATE($AM14,$AN14+1,①初期設定!$H$23-1),0,(H31+7)),0) -> 00:00:00 | I32: =IF(I31,IF(I31+7>DATE($AM14,$AN14+1,①初期設定!$H$23-1),0,(I31+7)),0) -> 00:00:00 | J32: =IF(J31,IF(J31+7>DATE($AM14,$AN14+1,①初期設定!$H$23-1),0,(J31+7)),0) -> 00:00:00 | K32: 56 | L32: =SUM(K27:K32) -> 336 | M32: =IF(①初期設定!$D$11="１カ月変形",IF(L32-K24>0,L32-K24,0),IF(①初期設定!$D$11="１年変形",IF(K32>52,"週52時間超",""),"")) ->  | P32: =IF(P31,IF(P31+7>DATE($AM15,$AN15+1,①初期設定!$H$23-1),0,(P31+7)),0) -> 00:00:00 | Q32: =IF(Q31,IF(Q31+7>DATE($AM15,$AN15+1,①初期設定!$H$23-1),0,(Q31+7)),0) -> 00:00:00 | R32: =IF(R31,IF(R31+7>DATE($AM15,$AN15+1,①初期設定!$H$23-1),0,(R31+7)),0) -> 00:00:00 | S32: =IF(S31,IF(S31+7>DATE($AM15,$AN15+1,①初期設定!$H$23-1),0,(S31+7)),0) -> 00:00:00 | T32: =IF(T31,IF(T31+7>DATE($AM15,$AN15+1,①初期設定!$H$23-1),0,(T31+7)),0) -> 00:00:00 | U32: =IF(U31,IF(U31+7>DATE($AM15,$AN15+1,①初期設定!$H$23-1),0,(U31+7)),0) -> 00:00:00 | V32: =IF(V31,IF(V31+7>DATE($AM15,$AN15+1,①初期設定!$H$23-1),0,(V31+7)),0) -> 00:00:00 | W32: 56 | X32: =SUM(W27:W32) -> 336 | Y32: =IF(①初期設定!$D$11="１カ月変形",IF(X32-W24>0,X32-W24,0),IF(①初期設定!$D$11="１年変形",IF(W32>52,"週52時間超",""),"")) ->  | AB32: =IF(AB31,IF(AB31+7>DATE($AM16,$AN16+1,①初期設定!$H$23-1),0,(AB31+7)),0) -> 00:00:00 | AC32: =IF(AC31,IF(AC31+7>DATE($AM16,$AN16+1,①初期設定!$H$23-1),0,(AC31+7)),0) -> 00:00:00 | AD32: =IF(AD31,IF(AD31+7>DATE($AM16,$AN16+1,①初期設定!$H$23-1),0,(AD31+7)),0) -> 00:00:00 | AE32: =IF(AE31,IF(AE31+7>DATE($AM16,$AN16+1,①初期設定!$H$23-1),0,(AE31+7)),0) -> 00:00:00 | AF32: =IF(AF31,IF(AF31+7>DATE($AM16,$AN16+1,①初期設定!$H$23-1),0,(AF31+7)),0) -> 00:00:00 | AG32: =IF(AG31,IF(AG31+7>DATE($AM16,$AN16+1,①初期設定!$H$23-1),0,(AG31+7)),0) -> 00:00:00 | AH32: =IF(AH31,IF(AH31+7>DATE($AM16,$AN16+1,①初期設定!$H$23-1),0,(AH31+7)),0) -> 00:00:00 | AI32: 56 | AJ32: =SUM(AI27:AI32) -> 336 | AK32: =IF(①初期設定!$D$11="１カ月変形",IF(AJ32-AI24>0,AJ32-AI24,0),IF(①初期設定!$D$11="１年変形",IF(AI32>52,"週52時間超",""),"")) ->  | AN32: 12 | AO32: 木
D33: =IF(①初期設定!$H$23=1,IF(AB24=12,1,AB24+1),AD24) -> 10 | E33: =IF(F33="","","～") ->  | F33: =IF(①初期設定!$H$23=1,"",IF(D33=12,D33-11,D33+1)) ->  | K33: =IF(①初期設定!$D$11="１カ月変形",IF(①初期設定!$D$4="一般",ROUNDDOWN(40*L39/7,1),ROUNDDOWN(44*L39/7,1)),"") ->  | P33: =IF(①初期設定!$H$23=1,IF(D33=12,1,D33+1),F33) -> 11 | Q33: =IF(R33="","","～") ->  | R33: =IF(①初期設定!$H$23=1,"",IF(P33=12,P33-11,P33+1)) ->  | W33: =IF(①初期設定!$D$11="１カ月変形",IF(①初期設定!$D$4="一般",ROUNDDOWN(40*X39/7,1),ROUNDDOWN(44*X39/7,1)),"") ->  | AB33: =IF(①初期設定!$H$23=1,IF(P33=12,1,P33+1),R33) -> 12 | AC33: =IF(AD33="","","～") ->  | AD33: =IF(①初期設定!$H$23=1,"",IF(AB33=12,AB33-11,AB33+1)) ->  | AI33: =IF(①初期設定!$D$11="１カ月変形",IF(①初期設定!$D$4="一般",ROUNDDOWN(40*AJ39/7,1),ROUNDDOWN(44*AJ39/7,1)),"") ->  | AN33: 13 | AO33: 金
D34: =①初期設定!$D$29 -> 日 | E34: =①初期設定!$E$29 -> 月 | F34: =①初期設定!$F$29 -> 火 | G34: =①初期設定!$G$29 -> 水 | H34: =①初期設定!$H$29 -> 木 | I34: =①初期設定!$I$29 -> 金 | J34: =①初期設定!$J$29 -> 土 | K34: 週所定 | L34: 所定労働日数 | P34: =①初期設定!$D$29 -> 日 | Q34: =①初期設定!$E$29 -> 月 | R34: =①初期設定!$F$29 -> 火 | S34: =①初期設定!$G$29 -> 水 | T34: =①初期設定!$H$29 -> 木 | U34: =①初期設定!$I$29 -> 金 | V34: =①初期設定!$J$29 -> 土 | W34: 週所定 | X34: 所定労働日数 | AB34: =①初期設定!$D$29 -> 日 | AC34: =①初期設定!$E$29 -> 月 | AD34: =①初期設定!$F$29 -> 火 | AE34: =①初期設定!$G$29 -> 水 | AF34: =①初期設定!$H$29 -> 木 | AG34: =①初期設定!$I$29 -> 金 | AH34: =①初期設定!$J$29 -> 土 | AI34: 週所定 | AJ34: 所定労働日数 | AN34: 14 | AO34: 土
D35: =①初期設定!$D$30 -> 0.3333333333 | E35: =①初期設定!$E$30 -> 0.3333333333 | F35: =①初期設定!$F$30 -> 0.3333333333 | G35: =①初期設定!$G$30 -> 0.3333333333 | H35: =①初期設定!$H$30 -> 0.3333333333 | I35: =①初期設定!$I$30 -> 0.3333333333 | J35: =①初期設定!$J$30 -> 0.3333333333 | K35: 労働Ｈ | L35: =COUNTIF(D116:J121,1) -> 42 | M35: =IF(①初期設定!$D$11="１年変形",IF(OR(D35*24>10,E35*24>10,F35*24>10,G35*24>10,H35*24>10,I35*24>10,J35*24>10),"10時間超",""),IF(①初期設定!$D$11="適用なし",IF(OR(D35*24>8,E35*24>8,F35*24>8,G35*24>8,H35*24>8,I35*24>8,J35*24>8),"8時間超",""),"")) ->  | P35: =①初期設定!$D$30 -> 0.3333333333 | Q35: =①初期設定!$E$30 -> 0.3333333333 | R35: =①初期設定!$F$30 -> 0.3333333333 | S35: =①初期設定!$G$30 -> 0.3333333333 | T35: =①初期設定!$H$30 -> 0.3333333333 | U35: =①初期設定!$I$30 -> 0.3333333333 | V35: =①初期設定!$J$30 -> 0.3333333333 | W35: 労働Ｈ | X35: =COUNTIF(P116:V121,1) -> 42 | Y35: =IF(①初期設定!$D$11="１年変形",IF(OR(P35*24>10,Q35*24>10,R35*24>10,S35*24>10,T35*24>10,U35*24>10,V35*24>10),"10時間超",""),IF(①初期設定!$D$11="適用なし",IF(OR(P35*24>8,Q35*24>8,R35*24>8,S35*24>8,T35*24>8,U35*24>8,V35*24>8),"8時間超",""),"")) ->  | AB35: =①初期設定!$D$30 -> 0.3333333333 | AC35: =①初期設定!$E$30 -> 0.3333333333 | AD35: =①初期設定!$F$30 -> 0.3333333333 | AE35: =①初期設定!$G$30 -> 0.3333333333 | AF35: =①初期設定!$H$30 -> 0.3333333333 | AG35: =①初期設定!$I$30 -> 0.3333333333 | AH35: =①初期設定!$J$30 -> 0.3333333333 | AI35: 労働Ｈ | AJ35: =COUNTIF(AB116:AH121,1) -> 42 | AK35: =IF(①初期設定!$D$11="１年変形",IF(OR(AB35*24>10,AC35*24>10,AD35*24>10,AE35*24>10,AF35*24>10,AG35*24>10,AH35*24>10),"10時間超",""),IF(①初期設定!$D$11="適用なし",IF(OR(AB35*24>8,AC35*24>8,AD35*24>8,AE35*24>8,AF35*24>8,AG35*24>8,AH35*24>8),"8時間超",""),"")) -> 
D36: =($J36-7+COLUMN(A36))*(COLUMN(B36)>WEEKDAY(DATE($AM17,$AN17,①初期設定!$H$23+(VLOOKUP(①初期設定!$J$23,$AM$21:$AN$27,2,FALSE)+VLOOKUP(①初期設定!$J$23,$AO$21:$AP$27,2,FALSE))))) -> 00:00:00 | E36: =($J36-7+COLUMN(B36))*(COLUMN(C36)>WEEKDAY(DATE($AM17,$AN17,①初期設定!$H$23+(VLOOKUP(①初期設定!$J$23,$AM$21:$AN$27,2,FALSE)+VLOOKUP(①初期設定!$J$23,$AO$21:$AP$27,2,FALSE))))) -> 00:00:00 | F36: =($J36-7+COLUMN(C36))*(COLUMN(D36)>WEEKDAY(DATE($AM17,$AN17,①初期設定!$H$23+(VLOOKUP(①初期設定!$J$23,$AM$21:$AN$27,2,FALSE)+VLOOKUP(①初期設定!$J$23,$AO$21:$AP$27,2,FALSE))))) -> 00:00:00 | G36: =($J36-7+COLUMN(D36))*(COLUMN(E36)>WEEKDAY(DATE($AM17,$AN17,①初期設定!$H$23+(VLOOKUP(①初期設定!$J$23,$AM$21:$AN$27,2,FALSE)+VLOOKUP(①初期設定!$J$23,$AO$21:$AP$27,2,FALSE))))) -> 00:00:00 | H36: =($J36-7+COLUMN(E36))*(COLUMN(F36)>WEEKDAY(DATE($AM17,$AN17,①初期設定!$H$23+(VLOOKUP(①初期設定!$J$23,$AM$21:$AN$27,2,FALSE)+VLOOKUP(①初期設定!$J$23,$AO$21:$AP$27,2,FALSE))))) -> 00:00:00 | I36: =($J36-7+COLUMN(F36))*(COLUMN(G36)>WEEKDAY(DATE($AM17,$AN17,①初期設定!$H$23+(VLOOKUP(①初期設定!$J$23,$AM$21:$AN$27,2,FALSE)+VLOOKUP(①初期設定!$J$23,$AO$21:$AP$27,2,FALSE))))) -> 2021-10-01 | J36: =DATE($AM17,$AN17,①初期設定!$H$23+7-WEEKDAY(DATE($AM17,$AN17,①初期設定!$H$23+(VLOOKUP(①初期設定!$J$23,$AM$21:$AN$27,2,FALSE)+VLOOKUP(①初期設定!$J$23,$AO$21:$AP$27,2,FALSE))))) -> 2021-10-02 | K36: =(D116*D$35+E116*E$35+F116*F$35+G116*G$35+H116*H$35+I116*I$35+J116*J$35)*24 -> 56 | L36: 所定休日数 | M36: =IF(①初期設定!$D$11="適用なし",IF(①初期設定!$D$4="一般",IF(K36+IF(AH31=0,AI31,AI32)>40,"週40時間超",""),IF(K36+IF(AH31=0,AI31,AI32)>44,"週44時間超","")),IF(①初期設定!$D$11="１年変形",IF(K36>52,"週52時間超",""),"")) -> 週40時間超 | P36: =($V36-7+COLUMN(M36)-12)*(COLUMN(N36)-12>WEEKDAY(DATE($AM18,$AN18,①初期設定!$H$23+(VLOOKUP(①初期設定!$J$23,$AM$21:$AN$27,2,FALSE)+VLOOKUP(①初期設定!$J$23,$AO$21:$AP$27,2,FALSE))))) -> 00:00:00 | Q36: =($V36-7+COLUMN(N36)-12)*(COLUMN(O36)-12>WEEKDAY(DATE($AM18,$AN18,①初期設定!$H$23+(VLOOKUP(①初期設定!$J$23,$AM$21:$AN$27,2,FALSE)+VLOOKUP(①初期設定!$J$23,$AO$21:$AP$27,2,FALSE))))) -> 2021-11-01 | R36: =($V36-7+COLUMN(O36)-12)*(COLUMN(P36)-12>WEEKDAY(DATE($AM18,$AN18,①初期設定!$H$23+(VLOOKUP(①初期設定!$J$23,$AM$21:$AN$27,2,FALSE)+VLOOKUP(①初期設定!$J$23,$AO$21:$AP$27,2,FALSE))))) -> 2021-11-02 | S36: =($V36-7+COLUMN(P36)-12)*(COLUMN(Q36)-12>WEEKDAY(DATE($AM18,$AN18,①初期設定!$H$23+(VLOOKUP(①初期設定!$J$23,$AM$21:$AN$27,2,FALSE)+VLOOKUP(①初期設定!$J$23,$AO$21:$AP$27,2,FALSE))))) -> 2021-11-03 | T36: =($V36-7+COLUMN(Q36)-12)*(COLUMN(R36)-12>WEEKDAY(DATE($AM18,$AN18,①初期設定!$H$23+(VLOOKUP(①初期設定!$J$23,$AM$21:$AN$27,2,FALSE)+VLOOKUP(①初期設定!$J$23,$AO$21:$AP$27,2,FALSE))))) -> 2021-11-04 | U36: =($V36-7+COLUMN(R36)-12)*(COLUMN(S36)-12>WEEKDAY(DATE($AM18,$AN18,①初期設定!$H$23+(VLOOKUP(①初期設定!$J$23,$AM$21:$AN$27,2,FALSE)+VLOOKUP(①初期設定!$J$23,$AO$21:$AP$27,2,FALSE))))) -> 2021-11-05 | V36: =DATE($AM18,$AN18,①初期設定!$H$23+7-WEEKDAY(DATE($AM18,$AN18,①初期設定!$H$23+(VLOOKUP(①初期設定!$J$23,$AM$21:$AN$27,2,FALSE)+VLOOKUP(①初期設定!$J$23,$AO$21:$AP$27,2,FALSE))))) -> 2021-11-06 | W36: =(P116*P$35+Q116*Q$35+R116*R$35+S116*S$35+T116*T$35+U116*U$35+V116*V$35)*24 -> 56 | X36: 所定休日数 | Y36: =IF(①初期設定!$D$11="適用なし",IF(①初期設定!$D$4="一般",IF(W36+IF(J40=0,K40,K41)>40,"週40時間超",""),IF(W36+IF(J40=0,K40,K41)>44,"週44時間超","")),IF(①初期設定!$D$11="１年変形",IF(W36>52,"週52時間超",""),"")) -> 週40時間超 | AB36: =($AH36-7+COLUMN(Y36)-24)*(COLUMN(Z36)-24>WEEKDAY(DATE($AM19,$AN19,①初期設定!$H$23+(VLOOKUP(①初期設定!$J$23,$AM$21:$AN$27,2,FALSE)+VLOOKUP(①初期設定!$J$23,$AO$21:$AP$27,2,FALSE))))) -> 00:00:00 | AC36: =($AH36-7+COLUMN(Z36)-24)*(COLUMN(AA36)-24>WEEKDAY(DATE($AM19,$AN19,①初期設定!$H$23+(VLOOKUP(①初期設定!$J$23,$AM$21:$AN$27,2,FALSE)+VLOOKUP(①初期設定!$J$23,$AO$21:$AP$27,2,FALSE))))) -> 00:00:00 | AD36: =($AH36-7+COLUMN(AA36)-24)*(COLUMN(AB36)-24>WEEKDAY(DATE($AM19,$AN19,①初期設定!$H$23+(VLOOKUP(①初期設定!$J$23,$AM$21:$AN$27,2,FALSE)+VLOOKUP(①初期設定!$J$23,$AO$21:$AP$27,2,FALSE))))) -> 00:00:00 | AE36: =($AH36-7+COLUMN(AB36)-24)*(COLUMN(AC36)-24>WEEKDAY(DATE($AM19,$AN19,①初期設定!$H$23+(VLOOKUP(①初期設定!$J$23,$AM$21:$AN$27,2,FALSE)+VLOOKUP(①初期設定!$J$23,$AO$21:$AP$27,2,FALSE))))) -> 2021-12-01 | AF36: =($AH36-7+COLUMN(AC36)-24)*(COLUMN(AD36)-24>WEEKDAY(DATE($AM19,$AN19,①初期設定!$H$23+(VLOOKUP(①初期設定!$J$23,$AM$21:$AN$27,2,FALSE)+VLOOKUP(①初期設定!$J$23,$AO$21:$AP$27,2,FALSE))))) -> 2021-12-02 | AG36: =($AH36-7+COLUMN(AD36)-24)*(COLUMN(AE36)-24>WEEKDAY(DATE($AM19,$AN19,①初期設定!$H$23+(VLOOKUP(①初期設定!$J$23,$AM$21:$AN$27,2,FALSE)+VLOOKUP(①初期設定!$J$23,$AO$21:$AP$27,2,FALSE))))) -> 2021-12-03 | AH36: =DATE($AM19,$AN19,①初期設定!$H$23+7-WEEKDAY(DATE($AM19,$AN19,①初期設定!$H$23+(VLOOKUP(①初期設定!$J$23,$AM$21:$AN$27,2,FALSE)+VLOOKUP(①初期設定!$J$23,$AO$21:$AP$27,2,FALSE))))) -> 2021-12-04 | AI36: =(AB116*AB$35+AC116*AC$35+AD116*AD$35+AE116*AE$35+AF116*AF$35+AG116*AG$35+AH116*AH$35)*24 -> 56 | AJ36: 所定休日数 | AK36: =IF(①初期設定!$D$11="適用なし",IF(①初期設定!$D$4="一般",IF(AI36+IF(V40=0,W40,W41)>40,"週40時間超",""),IF(AI36+IF(V40=0,W40,W41)>44,"週44時間超","")),IF(①初期設定!$D$11="１年変形",IF(AI36>52,"週52時間超",""),"")) -> 週40時間超
D37: =J36+1 -> 2021-10-03 | E37: =D37+1 -> 2021-10-04 | F37: =E37+1 -> 2021-10-05 | G37: =F37+1 -> 2021-10-06 | H37: =G37+1 -> 2021-10-07 | I37: =H37+1 -> 2021-10-08 | J37: =I37+1 -> 2021-10-09 | K37: =(D117*D$35+E117*E$35+F117*F$35+G117*G$35+H117*H$35+I117*I$35+J117*J$35)*24 -> 56 | L37: =L39-L35 -> -11 | M37: =IF(①初期設定!$D$11="１年変形",IF(K37>52,"週52時間超",""),"") ->  | P37: =V36+1 -> 2021-11-07 | Q37: =P37+1 -> 2021-11-08 | R37: =Q37+1 -> 2021-11-09 | S37: =R37+1 -> 2021-11-10 | T37: =S37+1 -> 2021-11-11 | U37: =T37+1 -> 2021-11-12 | V37: =U37+1 -> 2021-11-13 | W37: =(P117*P$35+Q117*Q$35+R117*R$35+S117*S$35+T117*T$35+U117*U$35+V117*V$35)*24 -> 56 | X37: =X39-X35 -> -12 | Y37: =IF(①初期設定!$D$11="１年変形",IF(W37>52,"週52時間超",""),"") ->  | AB37: =AH36+1 -> 2021-12-05 | AC37: =AB37+1 -> 2021-12-06 | AD37: =AC37+1 -> 2021-12-07 | AE37: =AD37+1 -> 2021-12-08 | AF37: =AE37+1 -> 2021-12-09 | AG37: =AF37+1 -> 2021-12-10 | AH37: =AG37+1 -> 2021-12-11 | AI37: =(AB117*AB$35+AC117*AC$35+AD117*AD$35+AE117*AE$35+AF117*AF$35+AG117*AG$35+AH117*AH$35)*24 -> 56 | AJ37: =AJ39-AJ35 -> -11 | AK37: =IF(①初期設定!$D$11="１年変形",IF(AI37>52,"週52時間超",""),"") -> 
D38: =IF(D37,IF(D37+7>DATE($AM17,$AN17+1,①初期設定!$H$23-1),0,(D37+7)),0) -> 2021-10-10 | E38: =IF(E37,IF(E37+7>DATE($AM17,$AN17+1,①初期設定!$H$23-1),0,(E37+7)),0) -> 2021-10-11 | F38: =IF(F37,IF(F37+7>DATE($AM17,$AN17+1,①初期設定!$H$23-1),0,(F37+7)),0) -> 2021-10-12 | G38: =IF(G37,IF(G37+7>DATE($AM17,$AN17+1,①初期設定!$H$23-1),0,(G37+7)),0) -> 2021-10-13 | H38: =IF(H37,IF(H37+7>DATE($AM17,$AN17+1,①初期設定!$H$23-1),0,(H37+7)),0) -> 2021-10-14 | I38: =IF(I37,IF(I37+7>DATE($AM17,$AN17+1,①初期設定!$H$23-1),0,(I37+7)),0) -> 2021-10-15 | J38: =IF(J37,IF(J37+7>DATE($AM17,$AN17+1,①初期設定!$H$23-1),0,(J37+7)),0) -> 2021-10-16 | K38: 56 | L38: 暦日数 | M38: =IF(①初期設定!$D$11="１年変形",IF(K38>52,"週52時間超",""),"") ->  | P38: =IF(P37,IF(P37+7>DATE($AM18,$AN18+1,①初期設定!$H$23-1),0,(P37+7)),0) -> 2021-11-14 | Q38: =IF(Q37,IF(Q37+7>DATE($AM18,$AN18+1,①初期設定!$H$23-1),0,(Q37+7)),0) -> 2021-11-15 | R38: =IF(R37,IF(R37+7>DATE($AM18,$AN18+1,①初期設定!$H$23-1),0,(R37+7)),0) -> 2021-11-16 | S38: =IF(S37,IF(S37+7>DATE($AM18,$AN18+1,①初期設定!$H$23-1),0,(S37+7)),0) -> 2021-11-17 | T38: =IF(T37,IF(T37+7>DATE($AM18,$AN18+1,①初期設定!$H$23-1),0,(T37+7)),0) -> 2021-11-18 | U38: =IF(U37,IF(U37+7>DATE($AM18,$AN18+1,①初期設定!$H$23-1),0,(U37+7)),0) -> 2021-11-19 | V38: =IF(V37,IF(V37+7>DATE($AM18,$AN18+1,①初期設定!$H$23-1),0,(V37+7)),0) -> 2021-11-20 | W38: 56 | X38: 暦日数 | Y38: =IF(①初期設定!$D$11="１年変形",IF(W38>52,"週52時間超",""),"") ->  | AB38: =IF(AB37,IF(AB37+7>DATE($AM19,$AN19+1,①初期設定!$H$23-1),0,(AB37+7)),0) -> 2021-12-12 | AC38: =IF(AC37,IF(AC37+7>DATE($AM19,$AN19+1,①初期設定!$H$23-1),0,(AC37+7)),0) -> 2021-12-13 | AD38: =IF(AD37,IF(AD37+7>DATE($AM19,$AN19+1,①初期設定!$H$23-1),0,(AD37+7)),0) -> 2021-12-14 | AE38: =IF(AE37,IF(AE37+7>DATE($AM19,$AN19+1,①初期設定!$H$23-1),0,(AE37+7)),0) -> 2021-12-15 | AF38: =IF(AF37,IF(AF37+7>DATE($AM19,$AN19+1,①初期設定!$H$23-1),0,(AF37+7)),0) -> 2021-12-16 | AG38: =IF(AG37,IF(AG37+7>DATE($AM19,$AN19+1,①初期設定!$H$23-1),0,(AG37+7)),0) -> 2021-12-17 | AH38: =IF(AH37,IF(AH37+7>DATE($AM19,$AN19+1,①初期設定!$H$23-1),0,(AH37+7)),0) -> 2021-12-18 | AI38: 56 | AJ38: 暦日数 | AK38: =IF(①初期設定!$D$11="１年変形",IF(AI38>52,"週52時間超",""),"") -> 
D39: =IF(D38,IF(D38+7>DATE($AM17,$AN17+1,①初期設定!$H$23-1),0,(D38+7)),0) -> 2021-10-17 | E39: =IF(E38,IF(E38+7>DATE($AM17,$AN17+1,①初期設定!$H$23-1),0,(E38+7)),0) -> 2021-10-18 | F39: =IF(F38,IF(F38+7>DATE($AM17,$AN17+1,①初期設定!$H$23-1),0,(F38+7)),0) -> 2021-10-19 | G39: =IF(G38,IF(G38+7>DATE($AM17,$AN17+1,①初期設定!$H$23-1),0,(G38+7)),0) -> 2021-10-20 | H39: =IF(H38,IF(H38+7>DATE($AM17,$AN17+1,①初期設定!$H$23-1),0,(H38+7)),0) -> 2021-10-21 | I39: =IF(I38,IF(I38+7>DATE($AM17,$AN17+1,①初期設定!$H$23-1),0,(I38+7)),0) -> 2021-10-22 | J39: =IF(J38,IF(J38+7>DATE($AM17,$AN17+1,①初期設定!$H$23-1),0,(J38+7)),0) -> 2021-10-23 | K39: 56 | L39: =COUNTIF(D36:J41,"<>0") -> 31 | M39: =IF(①初期設定!$D$11="１年変形",IF(K39>52,"週52時間超",""),"") ->  | P39: =IF(P38,IF(P38+7>DATE($AM18,$AN18+1,①初期設定!$H$23-1),0,(P38+7)),0) -> 2021-11-21 | Q39: =IF(Q38,IF(Q38+7>DATE($AM18,$AN18+1,①初期設定!$H$23-1),0,(Q38+7)),0) -> 2021-11-22 | R39: =IF(R38,IF(R38+7>DATE($AM18,$AN18+1,①初期設定!$H$23-1),0,(R38+7)),0) -> 2021-11-23 | S39: =IF(S38,IF(S38+7>DATE($AM18,$AN18+1,①初期設定!$H$23-1),0,(S38+7)),0) -> 2021-11-24 | T39: =IF(T38,IF(T38+7>DATE($AM18,$AN18+1,①初期設定!$H$23-1),0,(T38+7)),0) -> 2021-11-25 | U39: =IF(U38,IF(U38+7>DATE($AM18,$AN18+1,①初期設定!$H$23-1),0,(U38+7)),0) -> 2021-11-26 | V39: =IF(V38,IF(V38+7>DATE($AM18,$AN18+1,①初期設定!$H$23-1),0,(V38+7)),0) -> 2021-11-27 | W39: 56 | X39: =COUNTIF(P36:V41,"<>0") -> 30 | Y39: =IF(①初期設定!$D$11="１年変形",IF(W39>52,"週52時間超",""),"") ->  | AB39: =IF(AB38,IF(AB38+7>DATE($AM19,$AN19+1,①初期設定!$H$23-1),0,(AB38+7)),0) -> 2021-12-19 | AC39: =IF(AC38,IF(AC38+7>DATE($AM19,$AN19+1,①初期設定!$H$23-1),0,(AC38+7)),0) -> 2021-12-20 | AD39: =IF(AD38,IF(AD38+7>DATE($AM19,$AN19+1,①初期設定!$H$23-1),0,(AD38+7)),0) -> 2021-12-21 | AE39: =IF(AE38,IF(AE38+7>DATE($AM19,$AN19+1,①初期設定!$H$23-1),0,(AE38+7)),0) -> 2021-12-22 | AF39: =IF(AF38,IF(AF38+7>DATE($AM19,$AN19+1,①初期設定!$H$23-1),0,(AF38+7)),0) -> 2021-12-23 | AG39: =IF(AG38,IF(AG38+7>DATE($AM19,$AN19+1,①初期設定!$H$23-1),0,(AG38+7)),0) -> 2021-12-24 | AH39: =IF(AH38,IF(AH38+7>DATE($AM19,$AN19+1,①初期設定!$H$23-1),0,(AH38+7)),0) -> 2021-12-25 | AI39: 56 | AJ39: =COUNTIF(AB36:AH41,"<>0") -> 31 | AK39: =IF(①初期設定!$D$11="１年変形",IF(AI39>52,"週52時間超",""),"") -> 
D40: =IF(D39,IF(D39+7>DATE($AM17,$AN17+1,①初期設定!$H$23-1),0,(D39+7)),0) -> 2021-10-24 | E40: =IF(E39,IF(E39+7>DATE($AM17,$AN17+1,①初期設定!$H$23-1),0,(E39+7)),0) -> 2021-10-25 | F40: =IF(F39,IF(F39+7>DATE($AM17,$AN17+1,①初期設定!$H$23-1),0,(F39+7)),0) -> 2021-10-26 | G40: =IF(G39,IF(G39+7>DATE($AM17,$AN17+1,①初期設定!$H$23-1),0,(G39+7)),0) -> 2021-10-27 | H40: =IF(H39,IF(H39+7>DATE($AM17,$AN17+1,①初期設定!$H$23-1),0,(H39+7)),0) -> 2021-10-28 | I40: =IF(I39,IF(I39+7>DATE($AM17,$AN17+1,①初期設定!$H$23-1),0,(I39+7)),0) -> 2021-10-29 | J40: =IF(J39,IF(J39+7>DATE($AM17,$AN17+1,①初期設定!$H$23-1),0,(J39+7)),0) -> 2021-10-30 | K40: 56 | L40: 月所定労働時間 | M40: =IF(①初期設定!$D$11="１カ月変形",IF(L41>K33,"総枠超え",""),IF(①初期設定!$D$11="１年変形",IF(K40>52,"週52時間超",""),"")) ->  | P40: =IF(P39,IF(P39+7>DATE($AM18,$AN18+1,①初期設定!$H$23-1),0,(P39+7)),0) -> 2021-11-28 | Q40: =IF(Q39,IF(Q39+7>DATE($AM18,$AN18+1,①初期設定!$H$23-1),0,(Q39+7)),0) -> 2021-11-29 | R40: =IF(R39,IF(R39+7>DATE($AM18,$AN18+1,①初期設定!$H$23-1),0,(R39+7)),0) -> 2021-11-30 | S40: =IF(S39,IF(S39+7>DATE($AM18,$AN18+1,①初期設定!$H$23-1),0,(S39+7)),0) -> 00:00:00 | T40: =IF(T39,IF(T39+7>DATE($AM18,$AN18+1,①初期設定!$H$23-1),0,(T39+7)),0) -> 00:00:00 | U40: =IF(U39,IF(U39+7>DATE($AM18,$AN18+1,①初期設定!$H$23-1),0,(U39+7)),0) -> 00:00:00 | V40: =IF(V39,IF(V39+7>DATE($AM18,$AN18+1,①初期設定!$H$23-1),0,(V39+7)),0) -> 00:00:00 | W40: 56 | X40: 月所定労働時間 | Y40: =IF(①初期設定!$D$11="１カ月変形",IF(X41>W33,"総枠超え",""),IF(①初期設定!$D$11="１年変形",IF(W40>52,"週52時間超",""),"")) ->  | AB40: =IF(AB39,IF(AB39+7>DATE($AM19,$AN19+1,①初期設定!$H$23-1),0,(AB39+7)),0) -> 2021-12-26 | AC40: =IF(AC39,IF(AC39+7>DATE($AM19,$AN19+1,①初期設定!$H$23-1),0,(AC39+7)),0) -> 2021-12-27 | AD40: =IF(AD39,IF(AD39+7>DATE($AM19,$AN19+1,①初期設定!$H$23-1),0,(AD39+7)),0) -> 2021-12-28 | AE40: =IF(AE39,IF(AE39+7>DATE($AM19,$AN19+1,①初期設定!$H$23-1),0,(AE39+7)),0) -> 2021-12-29 | AF40: =IF(AF39,IF(AF39+7>DATE($AM19,$AN19+1,①初期設定!$H$23-1),0,(AF39+7)),0) -> 2021-12-30 | AG40: =IF(AG39,IF(AG39+7>DATE($AM19,$AN19+1,①初期設定!$H$23-1),0,(AG39+7)),0) -> 2021-12-31 | AH40: =IF(AH39,IF(AH39+7>DATE($AM19,$AN19+1,①初期設定!$H$23-1),0,(AH39+7)),0) -> 00:00:00 | AI40: 56 | AJ40: 月所定労働時間 | AK40: =IF(①初期設定!$D$11="１カ月変形",IF(AJ41>AI33,"総枠超え",""),IF(①初期設定!$D$11="１年変形",IF(AI40>52,"週52時間超",""),"")) -> 
D41: =IF(D40,IF(D40+7>DATE($AM17,$AN17+1,①初期設定!$H$23-1),0,(D40+7)),0) -> 2021-10-31 | E41: =IF(E40,IF(E40+7>DATE($AM17,$AN17+1,①初期設定!$H$23-1),0,(E40+7)),0) -> 00:00:00 | F41: =IF(F40,IF(F40+7>DATE($AM17,$AN17+1,①初期設定!$H$23-1),0,(F40+7)),0) -> 00:00:00 | G41: =IF(G40,IF(G40+7>DATE($AM17,$AN17+1,①初期設定!$H$23-1),0,(G40+7)),0) -> 00:00:00 | H41: =IF(H40,IF(H40+7>DATE($AM17,$AN17+1,①初期設定!$H$23-1),0,(H40+7)),0) -> 00:00:00 | I41: =IF(I40,IF(I40+7>DATE($AM17,$AN17+1,①初期設定!$H$23-1),0,(I40+7)),0) -> 00:00:00 | J41: =IF(J40,IF(J40+7>DATE($AM17,$AN17+1,①初期設定!$H$23-1),0,(J40+7)),0) -> 00:00:00 | K41: 56 | L41: =SUM(K36:K41) -> 336 | M41: =IF(①初期設定!$D$11="１カ月変形",IF(L41-K33>0,L41-K33,0),IF(①初期設定!$D$11="１年変形",IF(K41>52,"週52時間超",""),"")) ->  | P41: =IF(P40,IF(P40+7>DATE($AM18,$AN18+1,①初期設定!$H$23-1),0,(P40+7)),0) -> 00:00:00 | Q41: =IF(Q40,IF(Q40+7>DATE($AM18,$AN18+1,①初期設定!$H$23-1),0,(Q40+7)),0) -> 00:00:00 | R41: =IF(R40,IF(R40+7>DATE($AM18,$AN18+1,①初期設定!$H$23-1),0,(R40+7)),0) -> 00:00:00 | S41: =IF(S40,IF(S40+7>DATE($AM18,$AN18+1,①初期設定!$H$23-1),0,(S40+7)),0) -> 00:00:00 | T41: =IF(T40,IF(T40+7>DATE($AM18,$AN18+1,①初期設定!$H$23-1),0,(T40+7)),0) -> 00:00:00 | U41: =IF(U40,IF(U40+7>DATE($AM18,$AN18+1,①初期設定!$H$23-1),0,(U40+7)),0) -> 00:00:00 | V41: =IF(V40,IF(V40+7>DATE($AM18,$AN18+1,①初期設定!$H$23-1),0,(V40+7)),0) -> 00:00:00 | W41: 56 | X41: =SUM(W36:W41) -> 336 | Y41: =IF(①初期設定!$D$11="１カ月変形",IF(X41-W33>0,X41-W33,0),IF(①初期設定!$D$11="１年変形",IF(W41>52,"週52時間超",""),"")) ->  | AB41: =IF(AB40,IF(AB40+7>DATE($AM19,$AN19+1,①初期設定!$H$23-1),0,(AB40+7)),0) -> 00:00:00 | AC41: =IF(AC40,IF(AC40+7>DATE($AM19,$AN19+1,①初期設定!$H$23-1),0,(AC40+7)),0) -> 00:00:00 | AD41: =IF(AD40,IF(AD40+7>DATE($AM19,$AN19+1,①初期設定!$H$23-1),0,(AD40+7)),0) -> 00:00:00 | AE41: =IF(AE40,IF(AE40+7>DATE($AM19,$AN19+1,①初期設定!$H$23-1),0,(AE40+7)),0) -> 00:00:00 | AF41: =IF(AF40,IF(AF40+7>DATE($AM19,$AN19+1,①初期設定!$H$23-1),0,(AF40+7)),0) -> 00:00:00 | AG41: =IF(AG40,IF(AG40+7>DATE($AM19,$AN19+1,①初期設定!$H$23-1),0,(AG40+7)),0) -> 00:00:00 | AH41: =IF(AH40,IF(AH40+7>DATE($AM19,$AN19+1,①初期設定!$H$23-1),0,(AH40+7)),0) -> 00:00:00 | AI41: 56 | AJ41: =SUM(AI36:AI41) -> 336 | AK41: =IF(①初期設定!$D$11="１カ月変形",IF(AJ41-AI33>0,AJ41-AI33,0),IF(①初期設定!$D$11="１年変形",IF(AI41>52,"週52時間超",""),"")) -> 
D43: 年間所定労働日数等 | P43: 年所定労働時間数 | V43: =IF(①初期設定!$D$11="１年変形","所定労働時間の総枠の上限","") ->  | AH43: １カ月平均所定労働時間数
E44: 年間所定労働日数 | I44: =SUM(L8,X8,AJ8,L17,X17,AJ17,L26,X26,AJ26,L35,X35,AJ35) -> 504 | K44: =IF(①初期設定!$D$11="１年変形",IF(I44>280,"280日超",""),"") ->  | Q44: =IF(K6>L14,L14,K6)+IF(W6>X14,X14,W6)+IF(AI6>AJ14,AJ14,AI6)+IF(K15>L23,L23,K15)+IF(W15>X23,X23,W15)+IF(AI15>AJ23,AJ23,AI15)+IF(K24>L32,L32,K24)+IF(W24>X32,X32,W24)+IF(AI24>AJ32,AJ32,AI24)+IF(K33>L41,L41,K33)+IF(W33>X41,X41,W33)+IF(AI33>AJ41,AJ41,AI33) -> 4032 | U44: =IF(①初期設定!$D$11="１年変形",IF($Q$44>$W$44,"上限超",""),"") ->  | W44: =IF(①初期設定!$D$11="１年変形",$I$46*40/7,"") ->  | AI44: =Q44/12 -> 336
E45: 年間所定休日数 | I45: =SUM(L10,X10,AJ10,L19,X19,AJ19,L28,X28,AJ28,L37,X37,AJ37) -> -139 | Q45: =Q44/24 -> 168 | W45: =IFERROR(W44/24,"") ->  | AI45: =AI44/24 -> 14 | AM45: =L14+X14+AJ14+L23+X23+AJ23+L32+X32+AJ32+L41+X41+AJ41 -> 4032
E46: 年間合計日数 | I46: =SUM(I44:J45) -> 365
D49: =D6 -> 1 | P49: =P6 -> 2 | AB49: =AB6 -> 3
D50: =D7 -> 日 | E50: =E7 -> 月 | F50: 火 | G50: 水 | H50: 木 | I50: 金 | J50: 土 | P50: =P7 -> 日 | Q50: =Q7 -> 月 | R50: 火 | S50: 水 | T50: 木 | U50: 金 | V50: 土 | AB50: =AB7 -> 日 | AC50: =AC7 -> 月 | AD50: 火 | AE50: 水 | AF50: 木 | AG50: 金 | AH50: 土
D51: 1 | E51: 1 | F51: 1 | G51: 1 | H51: 1 | I51: 1 | J51: 1 | P51: 1 | Q51: 1 | R51: 1 | S51: 1 | T51: 1 | U51: 1 | V51: 1 | AB51: 1 | AC51: 1 | AD51: 1 | AE51: 1 | AF51: 1 | AG51: 1 | AH51: 1
D52: 1 | E52: 1 | F52: 1 | G52: 1 | H52: 1 | I52: 1 | J52: 1 | P52: 1 | Q52: 1 | R52: 1 | S52: 1 | T52: 1 | U52: 1 | V52: 1 | AB52: 1 | AC52: 1 | AD52: 1 | AE52: 1 | AF52: 1 | AG52: 1 | AH52: 1
D53: 1 | E53: 1 | F53: 1 | G53: 1 | H53: 1 | I53: 1 | J53: 1 | P53: 1 | Q53: 1 | R53: 1 | S53: 1 | T53: 1 | U53: 1 | V53: 1 | AB53: 1 | AC53: 1 | AD53: 1 | AE53: 1 | AF53: 1 | AG53: 1 | AH53: 1
D54: 1 | E54: 1 | F54: 1 | G54: 1 | H54: 1 | I54: 1 | J54: 1 | P54: 1 | Q54: 1 | R54: 1 | S54: 1 | T54: 1 | U54: 1 | V54: 1 | AB54: 1 | AC54: 1 | AD54: 1 | AE54: 1 | AF54: 1 | AG54: 1 | AH54: 1
D55: 1 | E55: 1 | F55: 1 | G55: 1 | H55: 1 | I55: 1 | J55: 1 | P55: 1 | Q55: 1 | R55: 1 | S55: 1 | T55: 1 | U55: 1 | V55: 1 | AB55: 1 | AC55: 1 | AD55: 1 | AE55: 1 | AF55: 1 | AG55: 1 | AH55: 1
D56: 1 | E56: 1 | F56: 1 | G56: 1 | H56: 1 | I56: 1 | J56: 1 | P56: 1 | Q56: 1 | R56: 1 | S56: 1 | T56: 1 | U56: 1 | V56: 1 | AB56: 1 | AC56: 1 | AD56: 1 | AE56: 1 | AF56: 1 | AG56: 1 | AH56: 1
D58: =D15 -> 4 | P58: =P15 -> 5 | AB58: =AB15 -> 6
D59: =D16 -> 日 | E59: =E16 -> 月 | F59: 火 | G59: 水 | H59: 木 | I59: 金 | J59: 土 | P59: =P16 -> 日 | Q59: =Q16 -> 月 | R59: 火 | S59: 水 | T59: 木 | U59: 金 | V59: 土 | AB59: =AB16 -> 日 | AC59: =AC16 -> 月 | AD59: 火 | AE59: 水 | AF59: 木 | AG59: 金 | AH59: 土
D60: 1 | E60: 1 | F60: 1 | G60: 1 | H60: 1 | I60: 1 | J60: 1 | P60: 1 | Q60: 1 | R60: 1 | S60: 1 | T60: 1 | U60: 1 | V60: 1 | AB60: 1 | AC60: 1 | AD60: 1 | AE60: 1 | AF60: 1 | AG60: 1 | AH60: 1
D61: 1 | E61: 1 | F61: 1 | G61: 1 | H61: 1 | I61: 1 | J61: 1 | P61: 1 | Q61: 1 | R61: 1 | S61: 1 | T61: 1 | U61: 1 | V61: 1 | AB61: 1 | AC61: 1 | AD61: 1 | AE61: 1 | AF61: 1 | AG61: 1 | AH61: 1
D62: 1 | E62: 1 | F62: 1 | G62: 1 | H62: 1 | I62: 1 | J62: 1 | P62: 1 | Q62: 1 | R62: 1 | S62: 1 | T62: 1 | U62: 1 | V62: 1 | AB62: 1 | AC62: 1 | AD62: 1 | AE62: 1 | AF62: 1 | AG62: 1 | AH62: 1
D63: 1 | E63: 1 | F63: 1 | G63: 1 | H63: 1 | I63: 1 | J63: 1 | P63: 1 | Q63: 1 | R63: 1 | S63: 1 | T63: 1 | U63: 1 | V63: 1 | AB63: 1 | AC63: 1 | AD63: 1 | AE63: 1 | AF63: 1 | AG63: 1 | AH63: 1
D64: 1 | E64: 1 | F64: 1 | G64: 1 | H64: 1 | I64: 1 | J64: 1 | P64: 1 | Q64: 1 | R64: 1 | S64: 1 | T64: 1 | U64: 1 | V64: 1 | AB64: 1 | AC64: 1 | AD64: 1 | AE64: 1 | AF64: 1 | AG64: 1 | AH64: 1
D65: 1 | E65: 1 | F65: 1 | G65: 1 | H65: 1 | I65: 1 | J65: 1 | P65: 1 | Q65: 1 | R65: 1 | S65: 1 | T65: 1 | U65: 1 | V65: 1 | AB65: 1 | AC65: 1 | AD65: 1 | AE65: 1 | AF65: 1 | AG65: 1 | AH65: 1
D67: =D24 -> 7 | P67: =P24 -> 8 | AB67: =AB24 -> 9
D68: =D25 -> 日 | E68: =E25 -> 月 | F68: 火 | G68: 水 | H68: 木 | I68: 金 | J68: 土 | P68: =P25 -> 日 | Q68: =Q25 -> 月 | R68: 火 | S68: 水 | T68: 木 | U68: 金 | V68: 土 | AB68: =AB25 -> 日 | AC68: =AC25 -> 月 | AD68: 火 | AE68: 水 | AF68: 木 | AG68: 金 | AH68: 土
D69: 1 | E69: 1 | F69: 1 | G69: 1 | H69: 1 | I69: 1 | J69: 1 | P69: 1 | Q69: 1 | R69: 1 | S69: 1 | T69: 1 | U69: 1 | V69: 1 | AB69: 1 | AC69: 1 | AD69: 1 | AE69: 1 | AF69: 1 | AG69: 1 | AH69: 1
D70: 1 | E70: 1 | F70: 1 | G70: 1 | H70: 1 | I70: 1 | J70: 1 | P70: 1 | Q70: 1 | R70: 1 | S70: 1 | T70: 1 | U70: 1 | V70: 1 | AB70: 1 | AC70: 1 | AD70: 1 | AE70: 1 | AF70: 1 | AG70: 1 | AH70: 1
D71: 1 | E71: 1 | F71: 1 | G71: 1 | H71: 1 | I71: 1 | J71: 1 | P71: 1 | Q71: 1 | R71: 1 | S71: 1 | T71: 1 | U71: 1 | V71: 1 | AB71: 1 | AC71: 1 | AD71: 1 | AE71: 1 | AF71: 1 | AG71: 1 | AH71: 1
D72: 1 | E72: 1 | F72: 1 | G72: 1 | H72: 1 | I72: 1 | J72: 1 | P72: 1 | Q72: 1 | R72: 1 | S72: 1 | T72: 1 | U72: 1 | V72: 1 | AB72: 1 | AC72: 1 | AD72: 1 | AE72: 1 | AF72: 1 | AG72: 1 | AH72: 1
D73: 1 | E73: 1 | F73: 1 | G73: 1 | H73: 1 | I73: 1 | J73: 1 | P73: 1 | Q73: 1 | R73: 1 | S73: 1 | T73: 1 | U73: 1 | V73: 1 | AB73: 1 | AC73: 1 | AD73: 1 | AE73: 1 | AF73: 1 | AG73: 1 | AH73: 1
D74: 1 | E74: 1 | F74: 1 | G74: 1 | H74: 1 | I74: 1 | J74: 1 | P74: 1 | Q74: 1 | R74: 1 | S74: 1 | T74: 1 | U74: 1 | V74: 1 | AB74: 1 | AC74: 1 | AD74: 1 | AE74: 1 | AF74: 1 | AG74: 1 | AH74: 1
D76: =D33 -> 10 | P76: =P33 -> 11 | AB76: =AB33 -> 12
D77: =D34 -> 日 | E77: =E34 -> 月 | F77: 火 | G77: 水 | H77: 木 | I77: 金 | J77: 土 | P77: =P34 -> 日 | Q77: =Q34 -> 月 | R77: 火 | S77: 水 | T77: 木 | U77: 金 | V77: 土 | AB77: =AB34 -> 日 | AC77: =AC34 -> 月 | AD77: 火 | AE77: 水 | AF77: 木 | AG77: 金 | AH77: 土
D78: 1 | E78: 1 | F78: 1 | G78: 1 | H78: 1 | I78: 1 | J78: 1 | P78: 1 | Q78: 1 | R78: 1 | S78: 1 | T78: 1 | U78: 1 | V78: 1 | AB78: 1 | AC78: 1 | AD78: 1 | AE78: 1 | AF78: 1 | AG78: 1 | AH78: 1
D79: 1 | E79: 1 | F79: 1 | G79: 1 | H79: 1 | I79: 1 | J79: 1 | P79: 1 | Q79: 1 | R79: 1 | S79: 1 | T79: 1 | U79: 1 | V79: 1 | AB79: 1 | AC79: 1 | AD79: 1 | AE79: 1 | AF79: 1 | AG79: 1 | AH79: 1
D80: 1 | E80: 1 | F80: 1 | G80: 1 | H80: 1 | I80: 1 | J80: 1 | P80: 1 | Q80: 1 | R80: 1 | S80: 1 | T80: 1 | U80: 1 | V80: 1 | AB80: 1 | AC80: 1 | AD80: 1 | AE80: 1 | AF80: 1 | AG80: 1 | AH80: 1
D81: 1 | E81: 1 | F81: 1 | G81: 1 | H81: 1 | I81: 1 | J81: 1 | P81: 1 | Q81: 1 | R81: 1 | S81: 1 | T81: 1 | U81: 1 | V81: 1 | AB81: 1 | AC81: 1 | AD81: 1 | AE81: 1 | AF81: 1 | AG81: 1 | AH81: 1
D82: 1 | E82: 1 | F82: 1 | G82: 1 | H82: 1 | I82: 1 | J82: 1 | P82: 1 | Q82: 1 | R82: 1 | S82: 1 | T82: 1 | U82: 1 | V82: 1 | AB82: 1 | AC82: 1 | AD82: 1 | AE82: 1 | AF82: 1 | AG82: 1 | AH82: 1
D83: 1 | E83: 1 | F83: 1 | G83: 1 | H83: 1 | I83: 1 | J83: 1 | P83: 1 | Q83: 1 | R83: 1 | S83: 1 | T83: 1 | U83: 1 | V83: 1 | AB83: 1 | AC83: 1 | AD83: 1 | AE83: 1 | AF83: 1 | AG83: 1 | AH83: 1
D87: =D6 -> 1 | P87: =P6 -> 2 | AB87: =AB6 -> 3
D88: =D50 -> 日 | E88: =E50 -> 月 | F88: 火 | G88: 水 | H88: 木 | I88: 金 | J88: 土 | P88: =P50 -> 日 | Q88: =Q50 -> 月 | R88: 火 | S88: 水 | T88: 木 | U88: 金 | V88: 土 | AB88: =AB50 -> 日 | AC88: =AC50 -> 月 | AD88: 火 | AE88: 水 | AF88: 木 | AG88: 金 | AH88: 土
D89: =IF(D9="","",D51) -> 1 | E89: 1 | F89: 1 | G89: 1 | H89: 1 | I89: 1 | J89: 1 | P89: =IF(P9="","",P51) -> 1 | Q89: 1 | R89: 1 | S89: 1 | T89: 1 | U89: 1 | V89: 1 | AB89: =IF(AB9="","",AB51) -> 1 | AC89: 1 | AD89: 1 | AE89: 1 | AF89: 1 | AG89: 1 | AH89: 1
D90: 1 | E90: 1 | F90: 1 | G90: 1 | H90: 1 | I90: 1 | J90: 1 | P90: 1 | Q90: 1 | R90: 1 | S90: 1 | T90: 1 | U90: 1 | V90: 1 | AB90: 1 | AC90: 1 | AD90: 1 | AE90: 1 | AF90: 1 | AG90: 1 | AH90: 1
D91: 1 | E91: 1 | F91: 1 | G91: 1 | H91: 1 | I91: 1 | J91: 1 | P91: 1 | Q91: 1 | R91: 1 | S91: 1 | T91: 1 | U91: 1 | V91: 1 | AB91: 1 | AC91: 1 | AD91: 1 | AE91: 1 | AF91: 1 | AG91: 1 | AH91: 1
D92: 1 | E92: 1 | F92: 1 | G92: 1 | H92: 1 | I92: 1 | J92: 1 | P92: 1 | Q92: 1 | R92: 1 | S92: 1 | T92: 1 | U92: 1 | V92: 1 | AB92: 1 | AC92: 1 | AD92: 1 | AE92: 1 | AF92: 1 | AG92: 1 | AH92: 1
D93: 1 | E93: 1 | F93: 1 | G93: 1 | H93: 1 | I93: 1 | J93: 1 | P93: 1 | Q93: 1 | R93: 1 | S93: 1 | T93: 1 | U93: 1 | V93: 1 | AB93: 1 | AC93: 1 | AD93: 1 | AE93: 1 | AF93: 1 | AG93: 1 | AH93: 1
D94: 1 | E94: 1 | F94: 1 | G94: 1 | H94: 1 | I94: 1 | J94: 1 | P94: 1 | Q94: 1 | R94: 1 | S94: 1 | T94: 1 | U94: 1 | V94: 1 | AB94: 1 | AC94: 1 | AD94: 1 | AE94: 1 | AF94: 1 | AG94: 1 | AH94: 1
D96: =D15 -> 4 | P96: =P15 -> 5 | AB96: =AB15 -> 6
D97: =D59 -> 日 | E97: =E59 -> 月 | F97: 火 | G97: 水 | H97: 木 | I97: 金 | J97: 土 | P97: =P59 -> 日 | Q97: =Q59 -> 月 | R97: 火 | S97: 水 | T97: 木 | U97: 金 | V97: 土 | AB97: =AB59 -> 日 | AC97: =AC59 -> 月 | AD97: 火 | AE97: 水 | AF97: 木 | AG97: 金 | AH97: 土
D98: =IF(D18="","",D60) -> 1 | E98: 1 | F98: 1 | G98: 1 | H98: 1 | I98: 1 | J98: 1 | P98: =IF(P18="","",P60) -> 1 | Q98: 1 | R98: 1 | S98: 1 | T98: 1 | U98: 1 | V98: 1 | AB98: =IF(AB18="","",AB60) -> 1 | AC98: 1 | AD98: 1 | AE98: 1 | AF98: 1 | AG98: 1 | AH98: 1
D99: 1 | E99: 1 | F99: 1 | G99: 1 | H99: 1 | I99: 1 | J99: 1 | P99: 1 | Q99: 1 | R99: 1 | S99: 1 | T99: 1 | U99: 1 | V99: 1 | AB99: 1 | AC99: 1 | AD99: 1 | AE99: 1 | AF99: 1 | AG99: 1 | AH99: 1
D100: 1 | E100: 1 | F100: 1 | G100: 1 | H100: 1 | I100: 1 | J100: 1 | P100: 1 | Q100: 1 | R100: 1 | S100: 1 | T100: 1 | U100: 1 | V100: 1 | AB100: 1 | AC100: 1 | AD100: 1 | AE100: 1 | AF100: 1 | AG100: 1 | AH100: 1
D101: 1 | E101: 1 | F101: 1 | G101: 1 | H101: 1 | I101: 1 | J101: 1 | P101: 1 | Q101: 1 | R101: 1 | S101: 1 | T101: 1 | U101: 1 | V101: 1 | AB101: 1 | AC101: 1 | AD101: 1 | AE101: 1 | AF101: 1 | AG101: 1 | AH101: 1
D102: 1 | E102: 1 | F102: 1 | G102: 1 | H102: 1 | I102: 1 | J102: 1 | P102: 1 | Q102: 1 | R102: 1 | S102: 1 | T102: 1 | U102: 1 | V102: 1 | AB102: 1 | AC102: 1 | AD102: 1 | AE102: 1 | AF102: 1 | AG102: 1 | AH102: 1
D103: 1 | E103: 1 | F103: 1 | G103: 1 | H103: 1 | I103: 1 | J103: 1 | P103: 1 | Q103: 1 | R103: 1 | S103: 1 | T103: 1 | U103: 1 | V103: 1 | AB103: 1 | AC103: 1 | AD103: 1 | AE103: 1 | AF103: 1 | AG103: 1 | AH103: 1
D105: =D24 -> 7 | P105: =P24 -> 8 | AB105: =AB24 -> 9
D106: =D68 -> 日 | E106: =E68 -> 月 | F106: 火 | G106: 水 | H106: 木 | I106: 金 | J106: 土 | P106: =P68 -> 日 | Q106: =Q68 -> 月 | R106: 火 | S106: 水 | T106: 木 | U106: 金 | V106: 土 | AB106: =AB68 -> 日 | AC106: =AC68 -> 月 | AD106: 火 | AE106: 水 | AF106: 木 | AG106: 金 | AH106: 土
D107: =IF(D27="","",D69) -> 1 | E107: 1 | F107: 1 | G107: 1 | H107: 1 | I107: 1 | J107: 1 | P107: =IF(P27="","",P69) -> 1 | Q107: 1 | R107: 1 | S107: 1 | T107: 1 | U107: 1 | V107: 1 | AB107: =IF(AB27="","",AB69) -> 1 | AC107: 1 | AD107: 1 | AE107: 1 | AF107: 1 | AG107: 1 | AH107: 1
D108: 1 | E108: 1 | F108: 1 | G108: 1 | H108: 1 | I108: 1 | J108: 1 | P108: 1 | Q108: 1 | R108: 1 | S108: 1 | T108: 1 | U108: 1 | V108: 1 | AB108: 1 | AC108: 1 | AD108: 1 | AE108: 1 | AF108: 1 | AG108: 1 | AH108: 1
D109: 1 | E109: 1 | F109: 1 | G109: 1 | H109: 1 | I109: 1 | J109: 1 | P109: 1 | Q109: 1 | R109: 1 | S109: 1 | T109: 1 | U109: 1 | V109: 1 | AB109: 1 | AC109: 1 | AD109: 1 | AE109: 1 | AF109: 1 | AG109: 1 | AH109: 1
D110: 1 | E110: 1 | F110: 1 | G110: 1 | H110: 1 | I110: 1 | J110: 1 | P110: 1 | Q110: 1 | R110: 1 | S110: 1 | T110: 1 | U110: 1 | V110: 1 | AB110: 1 | AC110: 1 | AD110: 1 | AE110: 1 | AF110: 1 | AG110: 1 | AH110: 1
D111: 1 | E111: 1 | F111: 1 | G111: 1 | H111: 1 | I111: 1 | J111: 1 | P111: 1 | Q111: 1 | R111: 1 | S111: 1 | T111: 1 | U111: 1 | V111: 1 | AB111: 1 | AC111: 1 | AD111: 1 | AE111: 1 | AF111: 1 | AG111: 1 | AH111: 1
D112: 1 | E112: 1 | F112: 1 | G112: 1 | H112: 1 | I112: 1 | J112: 1 | P112: 1 | Q112: 1 | R112: 1 | S112: 1 | T112: 1 | U112: 1 | V112: 1 | AB112: 1 | AC112: 1 | AD112: 1 | AE112: 1 | AF112: 1 | AG112: 1 | AH112: 1
D114: =D33 -> 10 | P114: =P33 -> 11 | AB114: =AB33 -> 12
D115: =D77 -> 日 | E115: =E77 -> 月 | F115: 火 | G115: 水 | H115: 木 | I115: 金 | J115: 土 | P115: =P77 -> 日 | Q115: =Q77 -> 月 | R115: 火 | S115: 水 | T115: 木 | U115: 金 | V115: 土 | AB115: =AB77 -> 日 | AC115: =AC77 -> 月 | AD115: 火 | AE115: 水 | AF115: 木 | AG115: 金 | AH115: 土
D116: =IF(D36="","",D78) -> 1 | E116: 1 | F116: 1 | G116: 1 | H116: 1 | I116: 1 | J116: 1 | P116: =IF(P36="","",P78) -> 1 | Q116: 1 | R116: 1 | S116: 1 | T116: 1 | U116: 1 | V116: 1 | AB116: =IF(AB36="","",AB78) -> 1 | AC116: 1 | AD116: 1 | AE116: 1 | AF116: 1 | AG116: 1 | AH116: 1
D117: 1 | E117: 1 | F117: 1 | G117: 1 | H117: 1 | I117: 1 | J117: 1 | P117: 1 | Q117: 1 | R117: 1 | S117: 1 | T117: 1 | U117: 1 | V117: 1 | AB117: 1 | AC117: 1 | AD117: 1 | AE117: 1 | AF117: 1 | AG117: 1 | AH117: 1
D118: 1 | E118: 1 | F118: 1 | G118: 1 | H118: 1 | I118: 1 | J118: 1 | P118: 1 | Q118: 1 | R118: 1 | S118: 1 | T118: 1 | U118: 1 | V118: 1 | AB118: 1 | AC118: 1 | AD118: 1 | AE118: 1 | AF118: 1 | AG118: 1 | AH118: 1
D119: 1 | E119: 1 | F119: 1 | G119: 1 | H119: 1 | I119: 1 | J119: 1 | P119: 1 | Q119: 1 | R119: 1 | S119: 1 | T119: 1 | U119: 1 | V119: 1 | AB119: 1 | AC119: 1 | AD119: 1 | AE119: 1 | AF119: 1 | AG119: 1 | AH119: 1
D120: 1 | E120: 1 | F120: 1 | G120: 1 | H120: 1 | I120: 1 | J120: 1 | P120: 1 | Q120: 1 | R120: 1 | S120: 1 | T120: 1 | U120: 1 | V120: 1 | AB120: 1 | AC120: 1 | AD120: 1 | AE120: 1 | AF120: 1 | AG120: 1 | AH120: 1
D121: 1 | E121: 1 | F121: 1 | G121: 1 | H121: 1 | I121: 1 | J121: 1 | P121: 1 | Q121: 1 | R121: 1 | S121: 1 | T121: 1 | U121: 1 | V121: 1 | AB121: 1 | AC121: 1 | AD121: 1 | AE121: 1 | AF121: 1 | AG121: 1 | AH121: 1
... 1 more rows

Sheet ③固定残業代試算
K2: 【参考】
B3: ａ．最低賃金 | C3: 964 | L3: 最低賃金
M4: https://www.mhlw.go.jp/stf/seisakunitsuite/bunya/koyou_roudou/roudoukijun/minimumichiran/
B5: ｂ．１カ月平均所定労働時間数 | C5: =②年間カレンダー!AI44 -> 336 | E5: ←②年間カレンダーシートより
L6: 手当
B7: ｃ．基本給 | C7: 270000 | M7: ※最低賃金の対象とならない賃金 ➀臨時に支払われる賃金（結婚手当など） ➁1ヶ月を超える期間ごとに支払われる賃金（賞与など） ➂時間外労働、休日労働、深夜労働に対して支払われる賃金 ➃精皆勤手当、通勤手当、家族手当
B8: ｄ．手当（最賃対象・割増対象） | C8: 20000 | E8: ←住宅手当（一律支給）・役職手当
B9: ｅ．手当（最賃対象外+割増対象） | C9: 10000 | E9: ←家族手当（一律支給）・無事故手当・精皆勤手当
B10: ｆ．手当（最賃対象+割増対象外） | C10: 0 | E10: ←住宅手当（一律支給でない）・別居手当・子女教育手当
B11: ｇ．手当（最賃対象外+割増対象外） | C11: 5000 | E11: ←家族手当（一律支給でない）・通勤手当・臨時・1ヶ月超
B12: ｈ．合計 c＋d＋e＋f＋g | C12: =IFERROR(SUM(C7:C11),"") -> 305000 | N12: https://www.mhlw.go.jp/www2/topics/seido/kijunkyoku/minimum/minimum-12.htm
B14: ｉ．最低賃金チェック (c＋d＋f)/b | C14: =ROUNDDOWN((C7+C8+C10)/$C$5,0) -> 863 | M14: ※「割増賃金の基礎となる賃金」から除外できるもの ➀家族手当 ➁通勤手当 ➂別居手当 ➃子女教育手当 ➄住宅手当 ➅臨時に支払われた賃金 ➆1か月を超える期間ごとに支払われる賃金
B15: ｊ．1時間当たりの賃金額 (c＋d＋e)/b | C15: =ROUNDUP((C7+C8+C9)/$C$5,0) -> 893
B17: ｋ．固定残業代の対象とする時間 | C17: 20 | D17: 時間分
B18: ｌ．固定残業代 | C18: =C15*C17*1.25 -> 22325
B19: ｍ．割増賃金率 | C19: =IFERROR(C18/(C17*C15),"") -> 1.25
B21: ｎ．ｈ＋ｌ | C21: =IFERROR(C12+C18,"") -> 327325 | N21: https://www.mhlw.go.jp/new-info/kobetu/roudou/gyousei/kantoku/040324-5.html
K23: 【留意事項】
L24: ※ 適法に固定残業手当を導入するためには、就業規則等で手当の金額及び何時間分相当かを明確に定めてあることが必要です。
M25: https://www.hataraku.metro.tokyo.lg.jp/koyo/hiseiki/290301_rodoyouken.pdf
L26: ※ 休日日数や所定労働時間数が毎年変動する場合、固定残業代も変わる恐れがあります。
L27: ※ 最低賃金が変わった場合、法律を満たさない場合があります。
L28: ※ 時間外労働をさせる場合には、36協定の締結・届け出が必要です。
M29: https://www.startup-roudou.mhlw.go.jp/36_pact.html
L30: ※ 月60時間を超える時間外労働は5割以上の割増賃金が必要です（2023年4月まで中小企業については猶予中）。
M31: https://www.mhlw.go.jp/new-info/kobetu/roudou/gyousei/kantoku/dl/091214-1_03.pdf

Sheet 注意事項
B2: 注意事項
B3: ・このエクセルファイルの利用は自己責任でお願いいたします。利用することで発生した損害について、弊社はいかなる責任も負いません。
B4: ・不具合等ございましたら、ask@synergistic.co.jpまでご連絡いただけると助かります。
B5: ・このエクセルファイルの著作権は株式会社シナジスに帰属します。改変、再配布等は禁止します。
B7: ・週所定労働時間は、前月をまたぐ場合、合算しています。
B8: ・月所定労働時間は、その月のみとしているため、週所定労働時間の合計と合わない場合があります。
B10: 2021年の国民の祝日
B11: 元日 | C11: 2021-01-01 | D11: =TEXT(C11,"aaa") -> 金
B12: 成人の日 | C12: 2021-01-11 | D12: =TEXT(C12,"aaa") -> 月
B13: 建国記念の日 | C13: 2021-02-11 | D13: 木
B14: 天皇誕生日 | C14: 2021-02-23 | D14: 火
B15: 春分の日 | C15: 2021-03-20 | D15: 土
B16: 昭和の日 | C16: 2021-04-29 | D16: 木
B17: 憲法記念日 | C17: 2021-05-03 | D17: 月
B18: みどりの日 | C18: 2021-05-04 | D18: 火
B19: こどもの日 | C19: 2021-05-05 | D19: 水
B20: 海の日 | C20: 2021-07-22 | D20: 木 | E20: 7/19から変更
B21: スポーツの日 | C21: 2021-07-23 | D21: 金 | E21: 10/11から変更
B22: 山の日 | C22: 2021-08-08 | D22: 日 | E22: 8/11から変更
B23: 休日 | C23: 2021-08-09 | D23: 月 | E23: 祝日法第3条第2項による休日（振替休日）
B24: 敬老の日 | C24: 2021-09-20 | D24: 月
B25: 秋分の日 | C25: 2021-09-23 | D25: 木
B26: 文化の日 | C26: 2021-11-03 | D26: 水
B27: 勤労感謝の日 | C27: 2021-11-23 | D27: 火
B28: https://www8.cao.go.jp/chosei/shukujitsu/gaiyou.html
B29: http://www.synergistic.co.jp/国民の祝日/
... 1 more rows

Sheet マスター (hidden)
B3: 一般 | C3: 適用なし | D3: 2019 | E3: 1 | F3: 1 | G3: 日 | J3: =①初期設定!$D$30 -> 0.3333333333 | K3: =①初期設定!$E$30 -> 0.3333333333 | L3: =①初期設定!$F$30 -> 0.3333333333 | M3: =①初期設定!$G$30 -> 0.3333333333 | N3: =①初期設定!$H$30 -> 0.3333333333 | O3: =①初期設定!$I$30 -> 0.3333333333 | P3: =①初期設定!$J$30 -> 0.3333333333
B4: 特例措置対象事業場 | C4: １カ月変形 | D4: 2020 | E4: 2 | F4: 2 | G4: 月
C5: １年変形 | D5: 2021 | E5: 3 | F5: 3 | G5: 火
E6: 4 | F6: 4 | G6: 水
E7: 5 | F7: 5 | G7: 木
E8: 6 | F8: 6 | G8: 金
E9: 7 | F9: 7 | G9: 土
E10: 8 | F10: 8
E11: 9 | F11: 9
E12: 10 | F12: 10
E13: 11 | F13: 11
E14: 12 | F14: 12
F15: 13
F16: 14
F17: 15
F18: 16
F19: 17
F20: 18
F21: 19
F22: 20
F23: 21
F24: 22
F25: 23
F26: 24
F27: 25
F28: 26
F29: 27
F30: 28
F31: 29
F32: 30
F33: 31
